{"text_format":"1","workbook":"xlsx","n_sheets":9,"sheets":["Lists","Templates","ForPDF","Main","PersonalInfo","Education","Relation","Accusation","Property"],"not_rendered":{"charts":0,"images":18,"macros":1,"external_links":0,"defined_names":211,"comments":0,"pivot_tables":0},"unopened":[],"bounds":{"document_bytes":16777216,"sheet_cells":100000,"rows_first":2000,"rows_last":500,"rows_between":2000,"halvings":0,"cell_chars":16384,"cell_head_chars":4096},"cells_cut":0,"cells_raw":0,"read":"whole","date_system":"1900"}

{"sheet":"Lists","index":0,"n_rows":139,"n_cols":39,"rows_kept":139,"cut":false,"hidden":true,"merged":[]}
["For close",null,"Տուն/Շենք",null,"PropertySection1List1",null,"PropertySection2List1",null,"PropertySection2List2",null,"PropertySection2List3",null,"PropertySection2List4",null,"PropertySection2List5",null,"PropertySection3List6",null,"PropertySection7_2List1",null,"PropertySection7_2List2",null,"AccusationSection1_1List1",null,{"$f":"+YEAR((TODAY()))+1","v":2022},null,"RelationSection3_1List1",null,"ԵՐԵՎԱՆ","ԱՐԱԳԱԾՈՏՆ","ԱՐԱՐԱՏ","ԱՐՄԱՎԻՐ","ԳԵՂԱՐՔՈՒՆԻՔ","ԼՈՌԻ","ԿՈՏԱՅՔ","ՇԻՐԱԿ","ՍՅՈՒՆԻՔ","ՎԱՅՈՑ_ՁՈՐ","ՏԱՎՈՒՇ"]
["Close",null,"Տուն",null,"Ամուսին",null,"Հող",null,"միանձնյա սեփականություն",null,"քմ",null,"AMD",null,"Գնում",null,"Բաժնետոմս",null,"մինչև 1մլն ՀՀ դրամ",null,{"$f":"+YEAR(EDATE(TODAY(),-36))","v":2018},null,"Նախնական (արհեստագործական) կամ  միջին մասնագիտական կրթություն",null,"AccusationSection1_1List12",null,"Ծնող",null,"ԱՋԱՓՆՅԱԿ","ԱՇՏԱՐԱԿ","ԱՐՏԱՇԱՏ","ԱՐՄԱՎԻՐ (ՀՈԿՏԵՄԲԵՐՅԱՆ)","ԳԱՎԱՌ (ԿԱՄՈ)","ՎԱՆԱՁՈՐ","ՀՐԱԶԴԱՆ","ԳՅՈՒՄՐԻ","ԿԱՊԱՆ","ԵՂԵԳՆԱՁՈՐ","ԻՋԵՎԱՆ"]
[null,null,"Շենք",null,"Անչափահաս զավակ (այդ թվում՝ որդեգրված)",null,"Բնակելի տուն",null,"բաժնային սեփականություն",null,"հա",null,"USD",null,"Նվիրատվություն",null,"Բաժնեմաս",null,"1մլն-ից մինչև 2մլն",null,{"$f":"+U2-1","v":2017},null,"Բարձրագույն կրթություն",null,{"$f":"+Y1-1","v":2021},null,"Չափահաս զավակ",null,"ԱՎԱՆ","ՄՈՒՂՆԻ","ԱՐԱՐԱՏ","ՎԱՂԱՐՇԱՊԱՏ (ԷՋՄԻԱԾԻՆ)","ՃԱՄԲԱՐԱԿ","ԱԼԱՎԵՐԴԻ","ԱԲՈՎՅԱՆ","ԱՐԹԻԿ","ԱԳԱՐԱԿ","ՋԵՐՄՈՒԿ","ԲԵՐԴ"]
[null,null,null,null,"Խնամակալության/հոգաբարձության տակ գտնվող անձ",null,"Բնակարան",null,"համատեղ սեփականություն",null,null,null,"EUR",null,"Ժառանգություն",null,"Փայ",null,"2մլն-ից մինչև 5մլն",null,2016,null,"Հետբուհական կրթություն",null,{"$f":"+Y3-1","v":2020},null,"Եղբայր",null,"ԱՐԱԲԿԻՐ","ԱՊԱՐԱՆ","ՄԱՍԻՍ","ՄԵԾԱՄՈՐ","ԱՅԳՈՒՏ","ԱԿՆԵՐ","ԲՅՈՒՐԵՂԱՎԱՆ","ՄԱՐԱԼԻԿ","ԱՂՎԱՆԻ","ԿԵՉՈՒՏ","ԱՅԳԵՁՈՐ"]
[null,null,null,null,"Համատեղ բնակվող չափահաս անձ",null,"Հողակտոր",null,null,null,null,null,"RUR",null,"Այլ",null,"Այլ",null,"5մլն և ավել",null,2015,null,"Աշխատանքային գործունեություն",null,2019,null,"Քույր",null,"ԴԱՎԹԱՇԵՆ","ԱՐԱԳԱԾ","ՎԵԴԻ","ԱԿՆԱԼԻՃ","ԱՆՏԱՌԱՄԵՋ","ԱՔՈՐԻ","ՋՐԱԲԵՐ","ԱՂԻՆ","ԱՃԱՆԱՆ","ԳՆԴԵՎԱԶ","ԱՅԳԵՊԱՐ"]
[null,null,null,null,null,null,"Ոչ բնակելի տարածքներ",null,null,null,null,null,null,null,null,null,null,null,null,null,2014,null,"Մասնագիտական այլ գործունեություն",null,2018,null,"Ամուսնու ծնող",null,"ԷՐԵԲՈՒՆԻ","ԱՐԱՅԻ","ԱԲՈՎՅԱՆ","ԱԿՆԱՇԵՆ","ԱՐԾՎԱՇԵՆ","ԾԱՂԿԱՇԱՏ","ՆՈՒՌՆՈՒՍ","ԱՆԻԱՎԱՆ","ԱՆՏԱՌԱՇԱՏ","ԿԱՐՄՐԱՇԵՆ","ԱՐԾՎԱԲԵՐԴ"]
[null,null,null,null,null,null,"Ամառանոց",null,null,null,null,null,null,null,null,null,null,null,null,null,2013,null,null,null,2017,null,"Ամուսնու զավակ",null,"ԿԵՆՏՐՈՆ","ԱՓՆԱԳՅՈՒՂ","ԱԶԱՏԱՇԵՆ","ԱՂԱՎՆԱՏՈՒՆ","ԲԱՐԵՊԱՏ","ԿԱՃԱՃԿՈՒՏ","ԵՂՎԱՐԴ","ԱՆԻՊԵՄԶԱ","ԱՌԱՋԱՁՈՐ","ՀԵՐՀԵՐ","ԻԾԱՔԱՐ"]
["Checking for missing data in PersonalInfo",{"$f":"COUNTIF(PersonalInfo!A20:A189,FALSE)<1","v":false},null,null,null,null,"Այլ",null,null,null,null,null,null,null,null,null,null,null,null,null,2012,null,null,null,2016,null,"Ամուսնու եղբայր",null,"ՄԱԼԱԹԻԱ-ՍԵԲԱՍՏԻԱ","ԵՂԻՊԱՏՐՈՒՇ","ԱԶԱՏԱՎԱՆ","ԱՄԱՍԻԱ","ԳԵՏԻԿ","ՀԱՂՊԱՏ","ԱՐԱԳՅՈՒՂ","ԲԱԳՐԱՎԱՆ","ԱՐԾՎԱՆԻԿ","ՎԱՅՔ","ԾԱՂԿԱՎԱՆ"]
["Checking for missing data in Education",{"$f":"COUNTIF(Education!A13:A132,FALSE)<1","v":true},null,null,null,null,null,null,null,null,null,null,null,null,null,null,null,null,null,null,2011,null,null,null,2015,null,"Ամուսնու քույր",null,"ՆՈՐ ՆՈՐՔ","ԵՐՆՋԱՏԱՓ","ԱՅԳԱՎԱՆ","ԱՄԲԵՐԴ","ԴՊՐԱԲԱԿ","ՋԻԼԻԶԱ","ԲՈՒԺԱԿԱՆ","ԲԱՐՁՐԱՇԵՆ","ԲԱՐԳՈՒՇԱՏ","ԱԶԱՏԵԿ","ՄՈՎՍԵՍ"]
["Checking for missing data in Relation",{"$f":"COUNTIF(Relation!A11:A21,FALSE)<1","v":true},null,null,null,null,null,null,null,null,null,null,null,null,null,null,null,null,null,null,null,null,null,null,2014,null,null,null,"ՆՈՐՔ-ՄԱՐԱՇ","ԹԹՈՒՋՈՒՐ","ԱՅԳԵԶԱՐԴ","ԱՅԳԵԿ","ԹԹՈՒՋՈՒՐ","ԱԽԹԱԼԱ","ԶՈՎՈՒՆԻ","ԳՈՒՍԱՆԱԳՅՈՒՂ","ԳԵՂԱՆՈՒՇ","ԱՐԻՆ","ՆԱՎՈՒՐ"]
["Checking for missing data in Accusation",{"$f":"COUNTIF(Accusation!A12:A66,FALSE)<1","v":false},null,null,null,null,null,null,null,null,null,null,null,null,null,null,null,null,null,null,null,null,null,null,2013,null,null,null,"ՆՈՒԲԱՐԱՇԵՆ","ԼՈՒՍԱԳՅՈՒՂ","ԱՅԳԵՊԱՏ","ԱՅԳԵՇԱՏ","ԿԱԼԱՎԱՆ","ԱՌՈՂՋԱՐԱՆԻՆ ԿԻՑ","ԶՈՐԱՎԱՆ","ԻՍԱՀԱԿՅԱՆ","ԳՈՄԱՐԱՆ","ԶԵԴԵԱ","ՆԵՐՔԻՆ ԿԱՐՄԻՐ ԱՂԲՅՈՒՐ"]
["Checking for missing data in Property",{"$f":"COUNTIF(Property!A12:A180,FALSE)<1","v":true},null,null,null,null,null,null,null,null,null,null,null,null,null,null,null,null,null,null,null,null,null,null,2012,null,null,null,"ՇԵՆԳԱՎԻԹ","ԾԱՂԿԱՇԵՆ","ԱՅԳԵՍՏԱՆ","ԱՅԳԵՇԱՏ","ՁՈՐԱՎԱՆՔ","ԱԽԹԱԼԱ","ՍԱՐԱԼԱՆՋ","ԼԱՆՋԻԿ","ԴԱՎԻԹ ԲԵԿ","ՀՈՐԱԴԻՍ","ՆՈՐԱՇԵՆ"]
[null,null,null,null,null,null,null,null,null,null,null,null,null,null,null,null,null,null,null,null,null,null,null,null,2011,null,null,null,"ՔԱՆԱՔԵՌ-ԶԵՅԹՈՒՆ","ԿԱՅՔ","ԱՅՆԹԱՊ","ԱՊԱԳԱ","ՃԱՊԿՈՒՏ","ԲԵՆԴԻԿ","ԾԱՂԿԱՁՈՐ","ԼՈՒՍԱՂԲՅՈՒՐ","ԴԻՑՄԱՅՐԻ","ՓՈՌ","ՉԻՆԱՐԻ"]
[null,null,null,null,null,null,null,null,null,null,null,null,null,null,null,null,null,null,null,null,null,null,null,null,2010,null,null,null,null,"ՀԱՐԹԱՎԱՆ","ԱՎՇԱՐ","ԱՌԱՏԱՇԵՆ","ՄԱՐՏՈՒՆԻ","ՃՈՃԿԱՆ","ՆՈՐ ՀԱՃՆ","ՀԱՅԿԱՁՈՐ","ԵՂԵԳ","ԱՐԵՆԻ","ՉԻՆՉԻՆ"]
["Այո",null,null,null,null,null,null,null,null,null,null,null,null,null,null,null,null,null,null,null,null,null,null,null,2009,null,null,null,null,"ՁՈՐԱԳԼՈՒԽ","ԱՐԱԼԵԶ","ԱՐԱԳԱԾ","ՎԱՀԱՆ","ՄԵԾ ԱՅՐՈՒՄ","ՉԱՐԵՆՑԱՎԱՆ","ՁԻԹՀԱՆՔՈՎ","ԵՂՎԱՐԴ","ԱՄԱՂՈՒ","ՉՈՐԱԹԱՆ"]
["Ոչ",null,null,null,null,null,null,null,null,null,null,null,null,null,null,null,null,null,null,null,null,null,null,null,2008,null,null,null,null,"ՆԻԳԱՎԱՆ","ԱՐԱՐԱՏ","ԱՐԱԶԱՓ","ՄԱՐՏՈՒՆԻ","ՆԵՂՈՑ","ԱԼԱՓԱՐՍ","ՁՈՐԱԿԱՊ","ԽԴՐԱՆՑ","ԱԳԱՐԱԿԱՁՈՐ","ՊԱՌԱՎԱՔԱՐ"]
[null,null,null,null,null,null,null,null,null,null,null,null,null,null,null,null,null,null,null,null,null,null,null,null,2007,null,null,null,null,"ՇԵՆԱՎԱՆ","ԱՐԱՔՍԱՎԱՆ","ԱՐԱՔՍ","ՍԵՎԱՆ","ՇԱՄԼՈՒՂ","ԱՐԶԱԿԱՆ","ՇԻՐԱԿԱՎԱՆ","ԽՈՐՁՈՐ","ԱՂԱՎՆԱՁՈՐ","ՎԱՐԱԳԱՎԱՆ"]
[null,null,null,null,null,null,null,null,null,null,null,null,null,null,null,null,null,null,null,null,null,null,null,null,2006,null,null,null,null,"ՇՈՂԱԿՆ","ԱՐԲԱԹ","ԱՐԱՔՍ","ԳԱԳԱՐԻՆ","ՓՈՔՐ ԱՅՐՈՒՄ","ԲՋՆԻ","ՆՈՐՇԵՆ","ԾԱՎ","ԱՐՓԻ","ՎԵՐԻՆ ԿԱՐՄԻՐ ԱՂԲՅՈՒՐ"]
["ForPDFFooter","Հավակնորդի ստորագրությունը _________________________________",null,null,null,null,null,null,null,null,null,null,null,null,null,null,null,null,null,null,null,null,null,null,2005,null,null,null,null,"ՉՔՆԱՂ","ԱՐԳԱՎԱՆԴ","ԱՐԳԱՎԱՆԴ","ՎԱՐԴԵՆԻՍ","ԹՈՒՄԱՆՅԱՆ","ԿԱՐԵՆԻՍ","ՋՐԱՓԻ","ԿԱՂՆՈՒՏ","ԳՆԻՇԻԿ","ՏԱՎՈՒՇ"]
[null,null,null,null,null,null,null,null,null,null,null,null,null,null,null,null,null,null,null,null,null,null,null,null,2004,null,null,null,null,"ՋՐԱՄԲԱՐ","ԱՐՄԱՇ","ԱՐԳԻՆԱ","ԱՅՐՔ","ՔՈԲԵՐ ԿԱՅԱՐԱՆԻ","ՖԱՆՏԱՆ","ՍԱՌՆԱՂԲՅՈՒՐ","ՁՈՐԱՍՏԱՆ","ԵԼՓԻՆ","ԴԻԼԻՋԱՆ"]
["ForSaveMsg","Ցանկանում եք պահպանել փոփոխությունները",null,null,null,null,null,null,null,null,null,null,null,null,null,null,null,null,null,null,null,null,null,null,2003,null,null,null,null,"ՍԱՐԱԼԱՆՋ","ԱՐԵՎԱԲՈՒՅՐ","ԱՐՄԱՎԻՐ","ՆԵՐՔԻՆ ՇՈՐԺԱ","ԱԹԱՆ","ԱԿՈՒՆՔ","ՍԱՐԱԿԱՊ","ՃԱԿԱՏԵՆ","ԽԱՉԻԿ","ԱՂԱՎՆԱՎԱՆՔ"]
[null,null,null,null,null,null,null,null,null,null,null,null,null,null,null,null,null,null,null,null,null,null,null,null,2002,null,null,null,null,"ՎԱՐԴԵՆԻՍ","ԱՐԵՎՇԱՏ","ԱՐՇԱԼՈՒՅՍ","ՎԵՐԻՆ ՇՈՐԺԱ","ԱՀՆԻՁՈՐ","ԶԱՌ","ՔԱՐԱԲԵՐԴ","ՆԵՐՔԻՆ ԽՈՏԱՆԱՆ","ՄՈԶՐՈՎ","ԳԵՂԱՏԱՓ"]
[null,null,null,null,null,null,null,null,null,null,null,null,null,null,null,null,null,null,null,null,null,null,null,null,2001,null,null,null,null,"ՎԱՐԴԵՆՈՒՏ","ԲԱՂՐԱՄՅԱՆ","ԱՐՏԱՄԵՏ","ԱԽՊՐԱՁՈՐ","ԼՈՐՈՒՏ","ԶՈՎԱՇԵՆ","ԱԶԱՏԱՆ","ՆԵՐՔԻՆ ՀԱՆԴ","ՉԻՎԱ","ԳՈՇ"]
[null,null,null,null,null,null,null,null,null,null,null,null,null,null,null,null,null,null,null,null,null,null,null,null,2000,null,null,null,null,"ՔՈՒՉԱԿ","ԲԱՐՁՐԱՇԵՆ","ԱՐՏԻՄԵՏ","ԱԿՈՒՆՔ","ՄԱՐՑ","ԿԱՊՈՒՏԱՆ","ԱԽՈՒՐԻԿ","ՆՈՐԱՇԵՆԻԿ","ՌԻՆԴ","ԹԵՂՈՒՏ"]
[null,null,null,null,null,null,null,null,null,null,null,null,null,null,null,null,null,null,null,null,null,null,null,null,1999,null,null,null,null,"ԹԱԼԻՆ","ԿԱՔԱՎԱԲԵՐԴ","ԱՐՏԱՇԱՐ","ԱՍՏՂԱՁՈՐ","ՇԱՄՈՒՏ","ԿՈՏԱՅՔ","ԱԽՈՒՐՅԱՆ","ՇԻԿԱՀՈՂ","ԳԼԱՁՈՐ","ԽԱՉԱՐՁԱՆ"]
[null,null,null,null,null,null,null,null,null,null,null,null,null,null,null,null,null,null,null,null,null,null,null,null,1998,null,null,null,null,"ԱԳԱՐԱԿ ","ԲԵՐԴԻԿ","ԱՐԵՎԱԴԱՇՏ","ԱՐԾՎԱՆԻՍՏ","ՔԱՐԻՆՋ","ՀԱՏԻՍ","ԱՅԳԱԲԱՑ","ՇԻՇԿԵՐՏ","ԳԵՏԱՓ","ՀԱՂԱՐԾԻՆ"]
[null,null,null,null,null,null,null,null,null,null,null,null,null,null,null,null,null,null,null,null,null,null,null,null,1997,null,null,null,null,"ԱԳԱՐԱԿԱՎԱՆ","ԲԵՐՔԱՆՈՒՇ","ԱՐԵՎԱՇԱՏ","ԲԵՐԴԿՈՒՆՔ","ՍՊԻՏԱԿ","ՆՈՐ ԳՅՈՒՂ","ԱՐԵՎԻԿ","ՇՐՎԵՆԱՆՑ","ՎԵՐՆԱՇԵՆ","ՀՈՎՔ"]
[null,null,null,null,null,null,null,null,null,null,null,null,null,null,null,null,null,null,null,null,null,null,null,null,1996,null,null,null,null,"ԱԼԱԳՅԱԶ","ԲՅՈՒՐԱՎԱՆ","ԱՐԵՎԻԿ","ԳԱՆՁԱԿ","ՍՏԵՓԱՆԱՎԱՆ","ՍԵՎԱԲԵՐԴ","ԲԱՍԵՆ","ՉԱՓՆԻ","ԵՂԵԳԻՍ","ՃԵՐՄԱԿԱՎԱՆ"]
[null,null,null,null,null,null,null,null,null,null,null,null,null,null,null,null,null,null,null,null,null,null,null,null,1995,null,null,null,null,"ԱՎՇԵՆ","ԲՈՒՐԱՍՏԱՆ","ԲԱԳԱՐԱՆ","ԳԵՂԱՄԱՍԱՐ","ԱՐՄԱՆԻՍ","ԱՌԻՆՋ","ԿԱՄՈ","ՍԶՆԱԿ","ՇԱՏԻՆ","ՆՈՅԵՄԲԵՐՅԱՆ"]
[null,null,null,null,null,null,null,null,null,null,null,null,null,null,null,null,null,null,null,null,null,null,null,null,1994,null,null,null,null,"ԿԱՆԻԱՇԻՐ","ԳԵՂԱՆԻՍՏ","ԲԱՂՐԱՄՅԱՆ","ՍՈԹՔ","ԿԱԹՆԱՂԲՅՈՒՐ","ԱՐԱՄՈՒՍ","ԿԱՌՆՈՒՏ","ՍՅՈՒՆԻՔ","ԱՂՆՋԱՁՈՐ","ԲԱՂԱՆԻՍ"]
[null,null,null,null,null,null,null,null,null,null,null,null,null,null,null,null,null,null,null,null,null,null,null,null,1993,null,null,null,null,"ՃԱՐՃԱԿԻՍ","ԳԵՏԱԶԱՏ","ԲԱՂՐԱՄՅԱՆ","ԱԶԱՏ","ՈՒՐԱՍԱՐ","ԱՐԳԵԼ","ՀՈՎԻՏ","ՍՐԱՇԵՆ","ԱՐԱՏԵՍ","ԲԱՐԵԿԱՄԱՎԱՆ"]
[null,null,null,null,null,null,null,null,null,null,null,null,null,null,null,null,null,null,null,null,null,null,null,null,1992,null,null,null,null,"ՄԻՋՆԱՏՈՒՆ","ԳԵՏԱՓՆՅԱ","ԲԱՄԲԱԿԱՇԱՏ","ԱՎԱԶԱՆ","ՏԱՇԻՐ","ԱՐԶՆԻ","ՋՐԱՌԱՏ","ՍԵՎԱՔԱՐ","ԱՐՏԱԲՈՒՅՆՔ","ԲԵՐԴԱՎԱՆ"]
[null,null,null,null,null,null,null,null,null,null,null,null,null,null,null,null,null,null,null,null,null,null,null,null,1991,null,null,null,null,"ՄԻՐԱՔ","ԳՈՌԱՎԱՆ","ԲԵՐՔԱՇԱՏ","ԱՐԵԳՈՒՆԻ","ԲԼԱԳՈԴԱՐՆՈՅԵ","ԲԱԼԱՀՈՎԻՏ","ԱՂԻՆ ԿԱՅԱՐԱՆԻ","ՎԱՆԵՔ","ԳԵՏԻԿՎԱՆՔ","ԴՈՎԵՂ"]
[null,null,null,null,null,null,null,null,null,null,null,null,null,null,null,null,null,null,null,null,null,null,null,null,1990,null,null,null,null,"ՇԵՆԿԱՆԻ","ԴԱԼԱՐ","ԳԱՅ","ԱՐՓՈՒՆՔ","ԴԱՇՏԱԴԵՄ","ԳԱՌՆԻ","ԱՄԱՍԻԱ","ՎԱՐԴԱՎԱՆՔ","ԳՈՂԹԱՆԻԿ","ԿՈԹԻ"]
[null,null,null,null,null,null,null,null,null,null,null,null,null,null,null,null,null,null,null,null,null,null,null,null,1989,null,null,null,null,"ՋԱՄՇԼՈՒ","ԴԱՇՏԱՎԱՆ","ԳԵՏԱՇԵՆ","ԳԵՂԱՄԱԲԱԿ","ԼԵՌՆԱՀՈՎԻՏ","ԳԵՂԱԴԻՐ","ԱՐԵԳՆԱԴԵՄ","ՎԵՐԻՆ ԽՈՏԱՆԱՆ","ԹԱՌԱԹՈՒՄԲ","ՈՍԿԵՊԱՐ"]
[null,null,null,null,null,null,null,null,null,null,null,null,null,null,null,null,null,null,null,null,null,null,null,null,1988,null,null,null,null,"ՌՅԱ ԹԱԶԱ","ԴԱՇՏԱՔԱՐ","ԳՐԻԲՈՅԵԴՈՎ","ԴԱՐԱՆԱԿ","ԿԱԹՆԱՌԱՏ","ԳԵՂԱՇԵՆ","ԲԱՆԴԻՎԱՆ","ՏԱՆՁԱՎԵՐ","ԿԱԼԱՍԱՐ","ՈՍԿԵՎԱՆ"]
[null,null,null,null,null,null,null,null,null,null,null,null,null,null,null,null,null,null,null,null,null,null,null,null,1987,null,null,null,null,"ՍԱԴՈՒՆՑ","ԴԱՐԱԿԵՐՏ","ԴԱԼԱՐԻԿ","ԶԱՌԻՎԵՐ","ՄԵԴՈՎԿԱ","ԳԵՂԱՐԴ","ԲՅՈՒՐԱԿՆ","ՏԱՎՐՈՒՍ","ՀԵՐՄՈՆ","ՋՈՒՋԵՎԱՆ"]
[null,null,null,null,null,null,null,null,null,null,null,null,null,null,null,null,null,null,null,null,null,null,null,null,1986,null,null,null,null,"ՍԻՓԱՆ","ԴԱՐԲՆԻԿ","ԴԱՇՏ","ԿԱԽԱԿՆ","ԿՐՈՒԳԼԱՅԱ ՇԻՇԿԱ","ԳԵՏԱՄԵՋ","ԳՏԱՇԵՆ","ՈՒԺԱՆԻՍ","ՀՈՐԲԱՏԵՂ","ԱԶԱՏԱՄՈՒՏ"]
[null,null,null,null,null,null,null,null,null,null,null,null,null,null,null,null,null,null,null,null,null,null,null,null,1985,null,null,null,null,"ԱԿՈՒՆՔ","ԴԵՂՁՈՒՏ","ԴՈՂՍ","ԿՈՒԹ","ՄԵՂՎԱՀՈՎԻՏ","ԳՈՂԹ","ԿԱՄԽՈՒՏ","ՕԽՏԱՐ","ՀՈՐՍ","ԲԱՐԽՈՒԴԱՐԼՈՒ"]
[null,null,null,null,null,null,null,null,null,null,null,null,null,null,null,null,null,null,null,null,null,null,null,null,1984,null,null,null,null,"ԱՂՁՔ","ԴԻՄԻՏՐՈՎ","ԵՂԵԳՆՈՒՏ","ԿՈՒՏԱԿԱՆ","ՆՈՐԱՄՈՒՏ","ԹԵՂԵՆԻՔ","ՀՈՎՏՈՒՆ","ԳՈՐԻՍ","ՍԱԼԼԻ","ԱԿՆԱՂԲՅՈՒՐ"]
[null,null,null,null,null,null,null,null,null,null,null,null,null,null,null,null,null,null,null,null,null,null,null,null,1983,null,null,null,null,"ԱՆՏԱՌՈՒՏ","ԴԻՏԱԿ","ԵՐԱՍԽԱՀՈՒՆ","ՆՈՐԱԲԱԿ","ՆՈՎՈՍԵԼՑՈՎՈ","ԼԵՌՆԱՆԻՍՏ","ՄԵՂՐԱՇԱՏ","ԱԿՆԵՐ","ՍԵՎԱԺԱՅՌ","ԱՃԱՐԿՈՒՏ"]
[null,null,null,null,null,null,null,null,null,null,null,null,null,null,null,null,null,null,null,null,null,null,null,null,1982,null,null,null,null,"ԱՇՆԱԿ","ԴՎԻՆ","ԵՐՎԱՆԴԱՇԱՏ","ՇԱՏՋՐԵՔ","ՍԱՐԱՏՈՎԿԱ","ԿԱԹՆԱՂԲՅՈՒՐ","ՈՂՋԻ","ԱՂԲՈՒԼԱՂ","ՎԱՐԴԱՀՈՎԻՏ","ԱՅԳԵՀՈՎԻՏ"]
[null,null,null,null,null,null,null,null,null,null,null,null,null,null,null,null,null,null,null,null,null,null,null,null,1981,null,null,null,null,"ԱՎԱՆ","ԵՂԵԳՆԱՎԱՆ","ԶԱՐԹՈՆՔ","ՇԱՏՎԱՆ","ԳԵՏԱՎԱՆ","ԿԱՄԱՐԻՍ","ՋՐԱՁՈՐ","ԲԱՐՁՐԱՎԱՆ","ՔԱՐԱԳԼՈՒԽ","ԿԱՅԱՆ"]
[null,null,null,null,null,null,null,null,null,null,null,null,null,null,null,null,null,null,null,null,null,null,null,null,1980,null,null,null,null,"ԽՆՈՒՍԻԿ","ԵՐԱՍԽ","ՄԱՅԻՍՅԱՆ","ՋԱՂԱՑԱՁՈՐ","ԱԶՆՎԱՁՈՐ","ՀԱՑԱՎԱՆ","ԱՆՈՒՇԱՎԱՆ","ԽՆՁՈՐԵՍԿ","ԶԱՌԻԹԱՓ","ԱՅՐՈՒՄ"]
[null,null,null,null,null,null,null,null,null,null,null,null,null,null,null,null,null,null,null,null,null,null,null,null,1979,null,null,null,null,"ՄԵԾԱՁՈՐ","ԶԱՆԳԱԿԱՏՈՒՆ","ԼԵՆՈՒՂԻ","ՏՐԵՏՈՒՔ","ԱՆՏԱՌԱՄՈՒՏ","ՄԱՅԱԿՈՎՍԿԻ","ԱՇՈՑՔ","ՀԱՐԹԱՇԵՆ","ԱԽՏԱ","ԱՐՃԻՍ"]
[null,null,null,null,null,null,null,null,null,null,null,null,null,null,null,null,null,null,null,null,null,null,null,null,1978,null,null,null,null,"ԱՐԱԳԱԾԱՎԱՆ","ԶՈՐԱԿ","ԼԵՌՆԱԳՈԳ","ՓԱՄԲԱԿ","ԱՐՋՈՒՏ","ՄԵՂՐԱՁՈՐ","ԲԱՎՐԱ","ՁՈՐԱԿ","ԱՐՏԱՎԱՆ","ԲԱԳՐԱՏԱՇԵՆ"]
[null,null,null,null,null,null,null,null,null,null,null,null,null,null,null,null,null,null,null,null,null,null,null,null,1977,null,null,null,null,"ԱՐՏԵՆԻ","ԼԱՆՋԱԶԱՏ","ԼԵՌՆԱՄԵՐՁ","ՓՈՔՐ ՄԱՍՐԻԿ","ԱՐՋՈՒՏ ԿԱՅԱՐԱՆԻՆ ԿԻՑ","ԳՈՌԳՈՉ","ԶՈՒՅԳԱՂԲՅՈՒՐ","ՆԵՐՔԻՆ ԽՆՁՈՐԵՍԿ","ԲԱՐՁՐՈՒՆԻ","ԴԵԲԵԴԱՎԱՆ"]
[null,null,null,null,null,null,null,null,null,null,null,null,null,null,null,null,null,null,null,null,null,null,null,null,1976,null,null,null,null,"ԳԵՏԱՓ","ԼԱՆՋԱՌ","ԼՈՒԿԱՇԻՆ","ԳԵՂԱՄԱՎԱՆ","ԱՐԵՎԱՇՈՂ","ԱՂԱՎՆԱՁՈՐ","ԹԱՎՇՈՒՏ","ՇՈՒՌՆՈՒԽ","ԳՈՄՔ","ԴԵՂՁԱՎԱՆ"]
[null,null,null,null,null,null,null,null,null,null,null,null,null,null,null,null,null,null,null,null,null,null,null,null,1975,null,null,null,null,"ԼՈՒՍԱԿՆ","ԼՈՒՍԱՇՈՂ","ԼՈՒՍԱԳՅՈՒՂ","ԳԵՂԱՐՔՈՒՆԻՔ","ԲԱԶՈՒՄ","ԱՐՏԱՎԱԶ","ԿԱՐՄՐԱՎԱՆ","ՈՐՈՏԱՆ","ԽՆՁՈՐՈՒՏ","ԼՃԿԱՁՈՐ"]
[null,null,null,null,null,null,null,null,null,null,null,null,null,null,null,null,null,null,null,null,null,null,null,null,1974,null,null,null,null,"ԱՐԱԳԱԾՈՏՆ","ԼՈՒՍԱՌԱՏ","ԽԱՆՋՅԱՆ","ԳԵՂԱՔԱՐ","ԱՆՏԱՌԱՇԵՆ","ՀԱՆՔԱՎԱՆ","ԿՐԱՍԱՐ","ՎԱՆԱՆԴ","ԿԱՊՈՒՅՏ","ՀԱՂԹԱՆԱԿ"]
[null,null,null,null,null,null,null,null,null,null,null,null,null,null,null,null,null,null,null,null,null,null,null,null,1973,null,null,null,null,"ԹԱԹՈՒԼ","ԽԱՉՓԱՌ","ԽՈՐՈՆՔ","ԳԵՂՀՈՎԻՏ","ԳԵՂԱՍԱՐ","ՄԱՐՄԱՐԻԿ","ՂԱԶԱՆՉԻ","ՎԵՐԻՇԵՆ","ՄԱՐՏԻՐՈՍ","ՊՏՂԱՎԱՆ"]
[null,null,null,null,null,null,null,null,null,null,null,null,null,null,null,null,null,null,null,null,null,null,null,null,"Մինչ այսօր",null,null,null,null,"ԱՐՏԱՇԱՏԱՎԱՆ","ԿԱՆԱՉՈՒՏ","ԾԱՂԿԱԼԱՆՋ","ԼԵՌՆԱԿԵՐՏ","ԳՅՈՒԼԱԳԱՐԱԿ","ՓՅՈՒՆԻԿ","ՄԵԾ ՍԵՊԱՍԱՐ","ՔԱՐԱՀՈՒՆՋ","ՆՈՐ ԱԶՆԱԲԵՐԴ","ԱՉԱՋՈՒՐ"]
[null,null,null,null,null,null,null,null,null,null,null,null,null,null,null,null,null,null,null,null,null,null,null,null,null,null,null,null,null,"ԼՈՒՍԱՂԲՅՈՒՐ","ՀԱՅԱՆԻՍՏ","ԾԱՂԿՈՒՆՔ","ՆՇԽԱՐՔ","ԱՄՐԱԿԻՑ","ՄՐԳԱՇԵՆ","ՍԱՐԱԳՅՈՒՂ","ՄԵՂՐԻ","ՈՒՂԵՁՈՐ","ԲԵՐՔԱԲԵՐ"]
[null,null,null,null,null,null,null,null,null,null,null,null,null,null,null,null,null,null,null,null,null,null,null,null,null,null,null,null,null,"ՆԻԳԱՏՈՒՆ","ՀՆԱԲԵՐԴ","ԾԻԱԾԱՆ","ԴԴՄԱՇԵՆ","ԳԱՐԳԱՌ","ՆՈՐ ԱՐՏԱՄԵՏ","ՍԻԶԱՎԵՏ","ԱԳԱՐԱԿ","ՍԱՐԱՎԱՆ","ԳԱՆՁԱՔԱՐ"]
[null,null,null,null,null,null,null,null,null,null,null,null,null,null,null,null,null,null,null,null,null,null,null,null,null,null,null,null,null,"ԱՐՈՒՃ","ՀՈՎՏԱՇԱՏ","ԿՈՂԲԱՎԱՆ","ԵՐԱՆՈՍ","ԿՈՒՐԹԱՆ","ՆՈՐ ԳԵՂԻ","ՓՈՔՐ ՍԵՊԱՍԱՐ","ԱԼՎԱՆՔ","ՍԵՐՍ","ԳԵՏԱՀՈՎԻՏ"]
[null,null,null,null,null,null,null,null,null,null,null,null,null,null,null,null,null,null,null,null,null,null,null,null,null,null,null,null,null,"ԲԱԶՄԱՂԲՅՈՒՐ","ՀՈՎՏԱՇԵՆ","ՀԱՅԹԱՂ","ԶՈԼԱՔԱՐ","ՀՈԲԱՐՁԻ","ՆՈՐ ԵՐԶՆԿԱ","ԱՌԱՓԻ","ԱՅԳԵՁՈՐ","ՄԱԼԻՇԿԱ","ԴԻՏԱՎԱՆ"]
[null,null,null,null,null,null,null,null,null,null,null,null,null,null,null,null,null,null,null,null,null,null,null,null,null,null,null,null,null,"ՕԹԵՎԱՆ","ՂՈՒԿԱՍԱՎԱՆ","ՀԱՅԿԱՇԵՆ","ԶՈՎԱԲԵՐ","ՊՈՒՇԿԻՆՈ","ՈՂՋԱԲԵՐԴ","ԱՐԵՎՇԱՏ","ԳՈՒԴԵՄՆԻՍ",null,"ԵՆՈՔԱՎԱՆ"]
[null,null,null,null,null,null,null,null,null,null,null,null,null,null,null,null,null,null,null,null,null,null,null,null,null,null,null,null,null,"ԱՐԵՎՈՒՏ","ՄԱՍԻՍ","ՀԱՅԿԱՎԱՆ","ԾՈՎԱՍԱՐ","ՎԱՐԴԱԲԼՈՒՐ","ՊՌՈՇՅԱՆ","ԲԱՅԱՆԴՈՒՐ","ԹԽԿՈՒՏ",null,"ԼՈՒՍԱՀՈՎԻՏ"]
[null,null,null,null,null,null,null,null,null,null,null,null,null,null,null,null,null,null,null,null,null,null,null,null,null,null,null,null,null,"ԲՅՈՒՐԱԿԱՆ","ՄԱՐՄԱՐԱՇԵՆ","ՀԱՑԻԿ","ԼԱՆՋԱՂԲՅՈՒՐ","ԳՈԳԱՐԱՆ","ՊՏՂՆԻ","ԲԵՆԻԱՄԻՆ","ԼԵՀՎԱԶ",null,"ԼՈՒՍԱՁՈՐ"]
[null,null,null,null,null,null,null,null,null,null,null,null,null,null,null,null,null,null,null,null,null,null,null,null,null,null,null,null,null,"ԳԱՌՆԱՀՈՎԻՏ","ՄԽՉՅԱՆ","ՍԱՐԴԱՐԱՊԱՏ","ԼԻՃՔ","ԳՈՒԳԱՐՔ","ՋՐԱՌԱՏ","ԲԵՐԴԱՇԵՆ","ԼԻՃՔ",null,"ԽԱՇԹԱՌԱԿ"]
[null,null,null,null,null,null,null,null,null,null,null,null,null,null,null,null,null,null,null,null,null,null,null,null,null,null,null,null,null,"ԿԱՆՉ","ՄՐԳԱՆՈՒՇ","ՀՈՎՏԱՄԵՋ","ԼՃԱՇԵՆ","ԴԱՐՊԱՍ","ՋՐՎԵԺ","ՊԱՂԱԿՆ","ԿԱՐՃԵՎԱՆ",null,"ԾԱՂԿԱՎԱՆ"]
[null,null,null,null,null,null,null,null,null,null,null,null,null,null,null,null,null,null,null,null,null,null,null,null,null,null,null,null,null,"ԴԱՇՏԱԴԵՄ","ՄՐԳԱՎԱՆ","ՀՈՒՇԱԿԵՐՏ","ԼՃԱՎԱՆ","ԴԵԲԵՏ","ԶՈՎՔ","ԱԼՎԱՐ","ԿՈՒՐԻՍ",null,"ԿԻՐԱՆՑ"]
[null,null,null,null,null,null,null,null,null,null,null,null,null,null,null,null,null,null,null,null,null,null,null,null,null,null,null,null,null,"ԴԱՎԹԱՇԵՆ","ՄՐԳԱՎԵՏ","ԱՅԳԵՎԱՆ","ԼՃԱՓ","ԴՍԵՂ","ՁՈՐԱՂԲՅՈՒՐ","ԱՂՎՈՐԻԿ","ՆՌՆԱՁՈՐ",null,"ԿՈՂԲ"]
[null,null,null,null,null,null,null,null,null,null,null,null,null,null,null,null,null,null,null,null,null,null,null,null,null,null,null,null,null,"ԴԻԱՆ","ՆԱՐԵԿ","ՄԱՐԳԱՐԱ","ԼՈՒՍԱԿՈՒՆՔ","ԵՂԵԳՆՈՒՏ","ԳԵՏԱՐԳԵԼ","ԱՐԱՎԵՏ","ՇՎԱՆԻՁՈՐ",null,"ԶՈՐԱԿԱՆ"]
[null,null,null,null,null,null,null,null,null,null,null,null,null,null,null,null,null,null,null,null,null,null,null,null,null,null,null,null,null,"ԴՊՐԵՎԱՆՔ","ՆԻԶԱՄԻ","ՄԵԾԱՄՈՐ","ԽԱՉԱՂԲՅՈՒՐ","ԼԵՌՆԱՆՑՔ","ՍՈԼԱԿ","ԱՐԴԵՆԻՍ","ՎԱՀՐԱՎԱՐ",null,"ՍԱՐԻԳՅՈՒՂ"]
[null,null,null,null,null,null,null,null,null,null,null,null,null,null,null,null,null,null,null,null,null,null,null,null,null,null,null,null,null,"ԵՂՆԻԿ","ՆՇԱՎԱՆ","ՄԵՐՁԱՎԱՆ","ԾԱԿՔԱՐ","ԼԵՌՆԱՊԱՏ","ՎԵՐԻՆ ՊՏՂՆԻ","ԳԱՌՆԱՌԻՃ","ՎԱՐԴԱՆԻՁՈՐ",null,"ՍԵՎՔԱՐ"]
[null,null,null,null,null,null,null,null,null,null,null,null,null,null,null,null,null,null,null,null,null,null,null,null,null,null,null,null,null,"ԶԱՐԻՆՋԱ","ՆՈՅԱԿԵՐՏ","ՄՅԱՍՆԻԿՅԱՆ","ԾԱՂԿԱՇԵՆ","ԼԵՌՆԱՎԱՆ","ՔԱՂՍԻ","ԴԱՐԻԿ","ՏԱՇՏՈՒՆ",null,"ՎԱԶԱՇԵՆ"]
[null,null,null,null,null,null,null,null,null,null,null,null,null,null,null,null,null,null,null,null,null,null,null,null,null,null,null,null,null,"ԶՈՎԱՍԱՐ","ՆՈՐԱԲԱՑ","ՄՐԳԱՇԱՏ","ԾԱՂԿՈՒՆՔ","ԼԵՐՄՈՆՏՈՎՈ","ՔԱՆԱՔԵՌԱՎԱՆ","ԵՂՆԱՋՈՒՐ","ՍԻՍԻԱՆ"]
[null,null,null,null,null,null,null,null,null,null,null,null,null,null,null,null,null,null,null,null,null,null,null,null,null,null,null,null,null,"ԹԼԻԿ","ՆՈՐԱՄԱՐԳ","ՄՐԳԱՍՏԱՆ","ԾՈՎԱԳՅՈՒՂ","ԼՈՌԻ ԲԵՐԴ","ՔԱՍԱԽ","ԵՐԻԶԱԿ","ԴԱՍՏԱԿԵՐՏ"]
[null,null,null,null,null,null,null,null,null,null,null,null,null,null,null,null,null,null,null,null,null,null,null,null,null,null,null,null,null,"ԻՐԻՆԴ","ՆՈՐԱՇԵՆ","ՄՈՒՍԱԼԵՌ","ԾՈՎԱԶԱՐԴ","ԱԳԱՐԱԿ","ՔԱՐԱՇԱՄԲ","ԶԱՐԻՇԱՏ","ԱԽԼԱԹՅԱՆ"]
[null,null,null,null,null,null,null,null,null,null,null,null,null,null,null,null,null,null,null,null,null,null,null,null,null,null,null,null,null,"ԼԵՌՆԱՐՈՏ","ՆՈՐ ԽԱՐԲԵՐԴ","ՆԱԼԲԱՆԴՅԱՆ","ԾՈՎԱԿ","ԲՈՎԱՁՈՐ",null,"ԶՈՐԱԿԵՐՏ","ԱՂԻՏՈՒ"]
[null,null,null,null,null,null,null,null,null,null,null,null,null,null,null,null,null,null,null,null,null,null,null,null,null,null,null,null,null,"ԾԱՂԿԱՀՈՎԻՏ","ՆՈՐ ԿՅԱՆՔ","ՆՈՐ ԱՐՄԱՎԻՐ","ԾՈՎԻՆԱՐ","ԼԵՋԱՆ",null,"ԼՈՐԱՍԱՐ","ԱՆԳԵՂԱԿՈԹ"]
[null,null,null,null,null,null,null,null,null,null,null,null,null,null,null,null,null,null,null,null,null,null,null,null,null,null,null,null,null,"ԲԵՐՔԱՌԱՏ","ՆՈՐ ԿՅՈՒՐԻՆ","ՆՈՐ ԱՐՏԱԳԵՐՍ","ԿԱՐՃԱՂԲՅՈՒՐ","ԿՈՂԵՍ",null,"ԾԱՂԿՈՒՏ","ԱՇՈՏԱՎԱՆ"]
[null,null,null,null,null,null,null,null,null,null,null,null,null,null,null,null,null,null,null,null,null,null,null,null,null,null,null,null,null,"ԳԵՂԱԴԻՐ","ՆՈՐ ՈՒՂԻ","ՆՈՐ ԿԵՍԱՐԻԱ","ԿԱՐՄԻՐԳՅՈՒՂ","ՀՈՎՆԱՆԱՁՈՐ",null,"ՇԱՂԻԿ","ԱՐԵՎԻՍ"]
[null,null,null,null,null,null,null,null,null,null,null,null,null,null,null,null,null,null,null,null,null,null,null,null,null,null,null,null,null,"ԳԵՂԱՁՈՐ","ՇԱՀՈՒՄՅԱՆ","ՆՈՐԱԿԵՐՏ","ՀԱՅՐԱՎԱՆՔ","ՅԱՂԴԱՆ",null,"ԳԵՂԱՆԻՍՏ","ԲԱԼԱՔ"]
[null,null,null,null,null,null,null,null,null,null,null,null,null,null,null,null,null,null,null,null,null,null,null,null,null,null,null,null,null,"ԳԵՂԱՐՈՏ","ՈՍԿԵՏԱՓ","ՆՈՐԱՊԱՏ","ՁՈՐԱԳՅՈՒՂ","ՍՎԵՐԴԼՈՎ",null,"ԳԵՏԱՓ","ԲՆՈՒՆԻՍ"]
[null,null,null,null,null,null,null,null,null,null,null,null,null,null,null,null,null,null,null,null,null,null,null,null,null,null,null,null,null,"ԼԵՌՆԱՊԱՐ","ՈՍՏԱՆ","ՆՈՐԱՎԱՆ","ՄԱԴԻՆԱ","ՈՒՌՈՒՏ",null,"ԳԵՏՔ","ԲՌՆԱԿՈԹ"]
[null,null,null,null,null,null,null,null,null,null,null,null,null,null,null,null,null,null,null,null,null,null,null,null,null,null,null,null,null,"ԾԻԼՔԱՐ","ՊԱՐՈՒՅՐ ՍԵՎԱԿ","ՇԱՀՈՒՄՅԱՆ","ՄԱՔԵՆԻՍ","ԼՈՒՍԱՂԲՅՈՒՐ",null,"ԵՐԱԶԳԱՎՈՐՍ","ԳԵՏԱԹԱՂ"]
[null,null,null,null,null,null,null,null,null,null,null,null,null,null,null,null,null,null,null,null,null,null,null,null,null,null,null,null,null,"ՀՆԱԲԵՐԴ","ՏԻԳՐԱՆԱՇԵՆ","ՇԱՀՈՒՄՅԱՆԻ ԹՌՉՆԱՖԱԲՐԻԿԱ","ՄԵԾ ՄԱՍՐԻԿ","ԽՆԿՈՅԱՆ",null,"ԼԵՌՆԱԿԵՐՏ","ԴԱՐԲԱՍ"]
[null,null,null,null,null,null,null,null,null,null,null,null,null,null,null,null,null,null,null,null,null,null,null,null,null,null,null,null,null,"ՆՈՐԱՇԵՆ","ՋՐԱՀՈՎԻՏ","ՇԵՆԱՎԱՆ","ՆԵՐՔԻՆ ԳԵՏԱՇԵՆ","ԾԱՂԿԱԲԵՐ",null,"ԼՈՒՍԱԿԵՐՏ","ԹԱՆԱՀԱՏ"]
[null,null,null,null,null,null,null,null,null,null,null,null,null,null,null,null,null,null,null,null,null,null,null,null,null,null,null,null,null,"ՎԱՐԴԱԲԼՈՒՐ","ՋՐԱՇԵՆ","ՇԵՆԻԿ","ՆՈՐԱԿԵՐՏ","ԿԱԹՆԱՋՈՒՐ",null,"ՀԱՅԿԱՍԱՐ","ԹԱՍԻԿ"]
[null,null,null,null,null,null,null,null,null,null,null,null,null,null,null,null,null,null,null,null,null,null,null,null,null,null,null,null,null,"ԾԱՂԿԱՍԱՐ","ՌԱՆՉՊԱՐ","ՈՍԿԵՀԱՏ","ՆՈՐԱՇԵՆ","ՀԱԼԱՎԱՐ",null,"ՀԱՅԿԱՎԱՆ","ԻՇԽԱՆԱՍԱՐ"]
[null,null,null,null,null,null,null,null,null,null,null,null,null,null,null,null,null,null,null,null,null,null,null,null,null,null,null,null,null,"ԿԱԹՆԱՂԲՅՈՒՐ","ՍԱՅԱԹ-ՆՈՎԱ","ՊՏՂՈՒՆՔ","ՆՈՐԱՏՈՒՍ","ԳՅՈՒԼԼՈՒԴԱՐԱ",null,"ՀԱՅՐԵՆՅԱՑ","ԼԾԵՆ"]
[null,null,null,null,null,null,null,null,null,null,null,null,null,null,null,null,null,null,null,null,null,null,null,null,null,null,null,null,null,"ԿԱՐԲԻ","ՍԻՍ","ՋԱՆՖԻԴԱ","ՇՈՂԱԿԱԹ","ՀԱՅԴԱՐԼԻ",null,"ՀԱՌԻՃ","ԼՈՐ"]
[null,null,null,null,null,null,null,null,null,null,null,null,null,null,null,null,null,null,null,null,null,null,null,null,null,null,null,null,null,"ԿԱՐՄՐԱՇԵՆ","ՍԻՍԱՎԱՆ","ՋՐԱՇԵՆ","ԱՐՏԱՆԻՇ","ՔԻԼԻՍԱ",null,"ՀՈՌՈՄ","ՀԱՑԱՎԱՆ"]
[null,null,null,null,null,null,null,null,null,null,null,null,null,null,null,null,null,null,null,null,null,null,null,null,null,null,null,null,null,"ԿԱՔԱՎԱՁՈՐ","ՍԻՓԱՆԻԿ","ՋՐԱՌԱՏ","ԱՂԲԵՐՔ","ՀԱՐԹԱԳՅՈՒՂ",null,"ՀՈՎՏԱՇԵՆ","ՄՈՒՑՔ"]
[null,null,null,null,null,null,null,null,null,null,null,null,null,null,null,null,null,null,null,null,null,null,null,null,null,null,null,null,null,"ԿՈՇ","ՍՈՒՐԵՆԱՎԱՆ","ՋՐԱՐԲԻ","ԴՐԱԽՏԻԿ","ՁՈՐԱԳԵՏ",null,"ՂԱՐԻԲՋԱՆՅԱՆ","ՆԺԴԵՀ"]
[null,null,null,null,null,null,null,null,null,null,null,null,null,null,null,null,null,null,null,null,null,null,null,null,null,null,null,null,null,"ՀԱԿՈ","ՎԱՆԱՇԵՆ","ԳԵՂԱԿԵՐՏ","ԾԱՓԱԹԱՂ","ՁՈՐԱԳՅՈՒՂ",null,"ԱԽՈՒՐՅԱՆ ԿԱՅԱՐԱՆԻ","ՆՈՐԱՎԱՆ"]
[null,null,null,null,null,null,null,null,null,null,null,null,null,null,null,null,null,null,null,null,null,null,null,null,null,null,null,null,null,"ՀԱՑԱՇԵՆ","ՎԱՐԴԱՇԱՏ","ԱԼԱՇԿԵՐՏ","ՋԻԼ","ՂՈՒՐՍԱԼ",null,"ՄԱՐՄԱՇԵՆ","ՇԱՂԱՏ"]
[null,null,null,null,null,null,null,null,null,null,null,null,null,null,null,null,null,null,null,null,null,null,null,null,null,null,null,null,null,"ԴԴՄԱՍԱՐ","ՎԱՐԴԱՇԵՆ","ՎԱՆԱՆԴ","ՉԿԱԼՈՎԿԱ","ՄԱՐԳԱՀՈՎԻՏ",null,"ՄԱՅԻՍՅԱՆ","ՇԱՄԲ"]
[null,null,null,null,null,null,null,null,null,null,null,null,null,null,null,null,null,null,null,null,null,null,null,null,null,null,null,null,null,"ՂԱԶԱՐԱՎԱՆ","ԳԻՆԵՎԵՏ","ՎԱՐԴԱՆԱՇԵՆ","ՍԱՐՈՒԽԱՆ","ՄԵԾԱՎԱՆ",null,"ԼԵՌՆՈՒՏ","ՇԱՔԻ"]
[null,null,null,null,null,null,null,null,null,null,null,null,null,null,null,null,null,null,null,null,null,null,null,null,null,null,null,null,null,"ՄԱՍՏԱՐԱ","ՎԵՐԻՆ ԱՐՏԱՇԱՏ","ՏԱԼՎՈՐԻԿ","ՍԵՄՅՈՆՈՎԿԱ","ՁՅՈՒՆԱՇՈՂ",null,"ԿԱՊՍ","ՇԵՆԱԹԱՂ"]
[null,null,null,null,null,null,null,null,null,null,null,null,null,null,null,null,null,null,null,null,null,null,null,null,null,null,null,null,null,"ՁՈՐԱԳՅՈՒՂ","ՎԵՐԻՆ ԴՎԻՆ","ՏԱՆՁՈՒՏ","ՎԱՂԱՇԵՆ","ՄԻԽԱՅԼՈՎԿԱ",null,"ԿԱՐՄՐԱՔԱՐ","ՈՐՈՏՆԱՎԱՆ"]
[null,null,null,null,null,null,null,null,null,null,null,null,null,null,null,null,null,null,null,null,null,null,null,null,null,null,null,null,null,"ՄԵԼԻՔԳՅՈՒՂ","ՏԱՓԵՐԱԿԱՆ","ՏԱՐՈՆԻԿ","ՎԱՆԵՎԱՆ","ՊԱՂԱՂԲՅՈՒՐ",null,"ԿՐԱՇԵՆ","ՍԱԼՎԱՐԴ"]
[null,null,null,null,null,null,null,null,null,null,null,null,null,null,null,null,null,null,null,null,null,null,null,null,null,null,null,null,null,"ՆԵՐՔԻՆ ԲԱԶՄԱԲԵՐԴ","ՈՒՐՑԱԼԱՆՋ","ՓԱՐԱՔԱՐ","ՎԱՐԴԱՁՈՐ","ՄԵԾ ՊԱՐՆԻ",null,"ՀԱՑԻԿ","ՎԱՂԱՏԻՆ"]
[null,null,null,null,null,null,null,null,null,null,null,null,null,null,null,null,null,null,null,null,null,null,null,null,null,null,null,null,null,"ՆԵՐՔԻՆ ՍԱՍՆԱՇԵՆ","ՈՒՐՑԱՁՈՐ","ԹԱԻՐՈՎ","ՎԱՐԴԵՆԻԿ","ՆՈՐ ԽԱՉԱԿԱՊ",null,"ՀԱՑԻԿԱՎԱՆ","ՏՈԼՈՐՍ"]
[null,null,null,null,null,null,null,null,null,null,null,null,null,null,null,null,null,null,null,null,null,null,null,null,null,null,null,null,null,"ՆՈՐ ԱՄԱՆՈՍ","ԼԱՆՋԱՆԻՍՏ","ՓՇԱՏԱՎԱՆ","ՎԱՐՍԵՐ","ՇԱՀՈՒՄՅԱՆ",null,"ՀՈՎՈՒՆԻ","ՏՈՐՈՒՆԻՔ"]
[null,null,null,null,null,null,null,null,null,null,null,null,null,null,null,null,null,null,null,null,null,null,null,null,null,null,null,null,null,"ՆՈՐ ԱՐԹԻԿ","ՇԱՂԱՓ","ՔԱՐԱԿԵՐՏ","ՎԵՐԻՆ ԳԵՏԱՇԵՆ","ՇԵՆԱՎԱՆ",null,"ՄԵԾ ՍԱՐԻԱՐ","ՑՂՈՒՆԻ"]
[null,null,null,null,null,null,null,null,null,null,null,null,null,null,null,null,null,null,null,null,null,null,null,null,null,null,null,null,null,"ՆՈՐ ԵԴԵՍԻԱ","ՓՈՔՐ ՎԵԴԻ","ՖԵՐԻԿ","ՏՈՐՖԱՎԱՆ","ՇԻՐԱԿԱՄՈՒՏ",null,"ՇԻՐԱԿ","ՈՒՅԾ"]
[null,null,null,null,null,null,null,null,null,null,null,null,null,null,null,null,null,null,null,null,null,null,null,null,null,null,null,null,null,"ՇԱՄԻՐԱՄ","ՔԱՂՑՐԱՇԵՆ",null,null,"ՇՆՈՂ",null,"ՋԱՋՈՒՌ","ՔԱՋԱՐԱՆ"]
[null,null,null,null,null,null,null,null,null,null,null,null,null,null,null,null,null,null,null,null,null,null,null,null,null,null,null,null,null,"ՇՂԱՐՇԻԿ",null,null,null,"ԹԵՂՈՒՏ",null,"ՋԱՋՈՒՌԱՎԱՆ","ԱՆԴՈԿԱՎԱՆ"]
[null,null,null,null,null,null,null,null,null,null,null,null,null,null,null,null,null,null,null,null,null,null,null,null,null,null,null,null,null,"ՈՍԿԵԹԱՍ",null,null,null,"ՔԱՐԿՈՓ",null,"ՎԱՀՐԱՄԱԲԵՐԴ","ԱՋԱԲԱՋ"]
[null,null,null,null,null,null,null,null,null,null,null,null,null,null,null,null,null,null,null,null,null,null,null,null,null,null,null,null,null,"ՈՍԿԵՀԱՏ",null,null,null,"ՉԿԱԼՈՎ",null,"ՓՈՔՐԱՇԵՆ","ԲԱԲԻԿԱՎԱՆ"]
[null,null,null,null,null,null,null,null,null,null,null,null,null,null,null,null,null,null,null,null,null,null,null,null,null,null,null,null,null,"ՈՍԿԵՎԱԶ",null,null,null,"ՋՐԱՇԵՆ",null,"ՔԵԹԻ","ԳԵՂԱՎԱՆՔ"]
[null,null,null,null,null,null,null,null,null,null,null,null,null,null,null,null,null,null,null,null,null,null,null,null,null,null,null,null,null,"ՊԱՐՏԻԶԱԿ",null,null,null,"ՍԱՐԱԼԱՆՋ",null,"ՄԵԾ ՄԱՆԹԱՇ","ԳԵՂԻ"]
[null,null,null,null,null,null,null,null,null,null,null,null,null,null,null,null,null,null,null,null,null,null,null,null,null,null,null,null,null,"ՍԱՂՄՈՍԱՎԱՆ",null,null,null,"ՍԱՐԱՀԱՐԹ",null,"ՄԵՂՐԱՇԵՆ","ԳԵՏԻՇԵՆ"]
[null,null,null,null,null,null,null,null,null,null,null,null,null,null,null,null,null,null,null,null,null,null,null,null,null,null,null,null,null,"ՍԱՍՈՒՆԻԿ",null,null,null,"ՍԱՐԱՄԵՋ",null,"ՆԱՀԱՊԵՏԱՎԱՆ","ԼԵՌՆԱՁՈՐ"]
[null,null,null,null,null,null,null,null,null,null,null,null,null,null,null,null,null,null,null,null,null,null,null,null,null,null,null,null,null,"ԿԱՐԻՆ",null,null,null,"ՍԱՐՉԱՊԵՏ",null,"ՆՈՐ ԿՅԱՆՔ","ԿԱԹՆԱՌԱՏ"]
[null,null,null,null,null,null,null,null,null,null,null,null,null,null,null,null,null,null,null,null,null,null,null,null,null,null,null,null,null,"ՍՈՐԻԿ",null,null,null,"ԱՊԱՎԵՆ",null,"ՈՍԿԵՀԱՍԿ","ԿԱՎՃՈՒՏ"]
[null,null,null,null,null,null,null,null,null,null,null,null,null,null,null,null,null,null,null,null,null,null,null,null,null,null,null,null,null,"ՍՈՒՍԵՐ",null,null,null,"ԱՐԾՆԻ",null,"ՊԵՄԶԱՇԵՆ","ԿԱՐԴ"]
[null,null,null,null,null,null,null,null,null,null,null,null,null,null,null,null,null,null,null,null,null,null,null,null,null,null,null,null,null,"ՎԵՐԻՆ ԲԱԶՄԱԲԵՐԴ",null,null,null,"ՁՈՐԱՄՈՒՏ",null,"ՍԱՐԱԼԱՆՋ","ԿԻՑՔ"]
[null,null,null,null,null,null,null,null,null,null,null,null,null,null,null,null,null,null,null,null,null,null,null,null,null,null,null,null,null,"ՎԵՐԻՆ ՍԱՍՆԱՇԵՆ",null,null,null,"ԳՈԳԱՎԱՆ",null,"ՍԱՐԱՊԱՏ","ՁԱԳԻԿԱՎԱՆ (ՄՈՒՍԱԼԼԱՄ)"]
[null,null,null,null,null,null,null,null,null,null,null,null,null,null,null,null,null,null,null,null,null,null,null,null,null,null,null,null,null,"ՎԵՐԻՆ ՍԱՍՈՒՆԻԿ",null,null,null,"ՊԵՏՐՈՎԿԱ",null,"ԹՈՐՈՍԳՅՈՒՂ","ՆԵՐՔԻՆ ԳԻՐԱԹԱՂ"]
[null,null,null,null,null,null,null,null,null,null,null,null,null,null,null,null,null,null,null,null,null,null,null,null,null,null,null,null,null,"ՏԵՂԵՐ",null,null,null,"ՊՐԻՎՈԼՆՈՅԵ",null,"ԱՐՓԵՆԻ","ՆՈՐ ԱՍՏՂԱԲԵՐԴ"]
[null,null,null,null,null,null,null,null,null,null,null,null,null,null,null,null,null,null,null,null,null,null,null,null,null,null,null,null,null,"ՑԱՄԱՔԱՍԱՐ",null,null,null,"ՆՈՐԱՇԵՆ",null,"ԲԱՇԳՅՈՒՂ","ՈՉԵԹԻ"]
[null,null,null,null,null,null,null,null,null,null,null,null,null,null,null,null,null,null,null,null,null,null,null,null,null,null,null,null,null,"ՈՒՇԻ",null,null,null,"ՎԱՀԱԳՆԱՁՈՐ",null,"ԳՈԳՀՈՎԻՏ","ՎԵՐԻՆ ԳԵՂԱՎԱՆՔ"]
[null,null,null,null,null,null,null,null,null,null,null,null,null,null,null,null,null,null,null,null,null,null,null,null,null,null,null,null,null,"ՈՒՋԱՆ",null,null,null,"ՎԱՀԱԳՆԻ",null,"ԼԵՌՆԱԳՅՈՒՂ","ՎԵՐԻՆ ԳԻՐԱԹԱՂ"]
[null,null,null,null,null,null,null,null,null,null,null,null,null,null,null,null,null,null,null,null,null,null,null,null,null,null,null,null,null,"ՓԱՐՊԻ",null,null,null,"ՓԱՄԲԱԿ",null,"ԿԱՔԱՎԱՍԱՐ","ՓՈՒԽՐՈՒՏ"]
[null,null,null,null,null,null,null,null,null,null,null,null,null,null,null,null,null,null,null,null,null,null,null,null,null,null,null,null,null,"ՕՀԱՆԱՎԱՆ",null,null,null,"ՓԱՄԲԱԿ ԿԱՅԱՐԱՆԻՆ ԿԻՑ",null,"ՀԱՐԹԱՇԵՆ","ՔԱՋԱՐԱՆՑ"]
[null,null,null,null,null,null,null,null,null,null,null,null,null,null,null,null,null,null,null,null,null,null,null,null,null,null,null,null,null,"ՕՇԱԿԱՆ",null,null,null,"ՔԱՐԱԲԵՐԴ",null,"ՀՈՂՄԻԿ","ՔԱՐՈՒՏ"]
[null,null,null,null,null,null,null,null,null,null,null,null,null,null,null,null,null,null,null,null,null,null,null,null,null,null,null,null,null,"ՕՐԳՈՎ",null,null,null,"ՔԱՐԱՁՈՐ",null,"ՁՈՐԱՇԵՆ","ԳՈՐԱՅՔ"]
[null,null,null,null,null,null,null,null,null,null,null,null,null,null,null,null,null,null,null,null,null,null,null,null,null,null,null,null,null,null,null,null,null,"ՕՁՈՒՆ",null,"ՄՈՒՍԱՅԵԼՅԱՆ","ԾՂՈՒԿ"]
[null,null,null,null,null,null,null,null,null,null,null,null,null,null,null,null,null,null,null,null,null,null,null,null,null,null,null,null,null,null,null,null,null,"ԱՄՈՋ",null,"ՍԱԼՈՒՏ","ՍԱՌՆԱԿՈՒՆՔ"]
[null,null,null,null,null,null,null,null,null,null,null,null,null,null,null,null,null,null,null,null,null,null,null,null,null,null,null,null,null,null,null,null,null,"ԱՅԳԵՀԱՏ",null,"ՎԱՐԴԱՂԲՅՈՒՐ","ՍՊԱՆԴԱՐՅԱՆ"]
[null,null,null,null,null,null,null,null,null,null,null,null,null,null,null,null,null,null,null,null,null,null,null,null,null,null,null,null,null,null,null,null,null,"ԱՐԴՎԻ",null,"ՑՈՂԱՄԱՐԳ","ՇԻՆՈՒՀԱՅՐ"]
[null,null,null,null,null,null,null,null,null,null,null,null,null,null,null,null,null,null,null,null,null,null,null,null,null,null,null,null,null,null,null,null,null,"ԱՐԵՎԱԾԱԳ",null,"ՓՈՔՐ ՍԱՐԻԱՐ","ԽՈՏ"]
[null,null,null,null,null,null,null,null,null,null,null,null,null,null,null,null,null,null,null,null,null,null,null,null,null,null,null,null,null,null,null,null,null,"ԾԱԹԵՐ",null,"ՍԱՐԱՏԱԿ","ՀԱԼԻՁՈՐ"]
[null,null,null,null,null,null,null,null,null,null,null,null,null,null,null,null,null,null,null,null,null,null,null,null,null,null,null,null,null,null,null,null,null,"ԿԱՐՄԻՐ ԱՂԵԿ",null,"ՍՊԱՆԴԱՐՅԱՆ","ՀԱՐԺԻՍ"]
[null,null,null,null,null,null,null,null,null,null,null,null,null,null,null,null,null,null,null,null,null,null,null,null,null,null,null,null,null,null,null,null,null,"ՀԱԳՎԻ",null,"ՎԱՐԴԱՔԱՐ","ՍՎԱՐԱՆՑ"]
[null,null,null,null,null,null,null,null,null,null,null,null,null,null,null,null,null,null,null,null,null,null,null,null,null,null,null,null,null,null,null,null,null,"ՄՂԱՐԹ",null,"ՏՈՒՖԱՇԵՆ","ՏԱԹԵՎ"]
[null,null,null,null,null,null,null,null,null,null,null,null,null,null,null,null,null,null,null,null,null,null,null,null,null,null,null,null,null,null,null,null,null,"ՖԻՈԼԵՏՈՎՈ",null,"ՓԱՆԻԿ","ՏԱՆՁԱՏԱՓ"]
[null,null,null,null,null,null,null,null,null,null,null,null,null,null,null,null,null,null,null,null,null,null,null,null,null,null,null,null,null,null,null,null,null,null,null,"ՓՈՔՐ ՄԱՆԹԱՇ","ՔԱՇՈՒՆԻ"]
[null,null,null,null,null,null,null,null,null,null,null,null,null,null,null,null,null,null,null,null,null,null,null,null,null,null,null,null,null,null,null,null,null,null,null,null,"ՏԵՂ"]
[null,null,null,null,null,null,null,null,null,null,null,null,null,null,null,null,null,null,null,null,null,null,null,null,null,null,null,null,null,null,null,null,null,null,null,null,"ԱՐԱՎՈՒՍ"]
[null,null,null,null,null,null,null,null,null,null,null,null,null,null,null,null,null,null,null,null,null,null,null,null,null,null,null,null,null,null,null,null,null,null,null,null,"ԽՆԱԾԱԽ"]
[null,null,null,null,null,null,null,null,null,null,null,null,null,null,null,null,null,null,null,null,null,null,null,null,null,null,null,null,null,null,null,null,null,null,null,null,"ԽՈԶՆԱՎԱՐ"]
[null,null,null,null,null,null,null,null,null,null,null,null,null,null,null,null,null,null,null,null,null,null,null,null,null,null,null,null,null,null,null,null,null,null,null,null,"ԿՈՌՆԻՁՈՐ"]
[null,null,null,null,null,null,null,null,null,null,null,null,null,null,null,null,null,null,null,null,null,null,null,null,null,null,null,null,null,null,null,null,null,null,null,null,"ՎԱՂԱՏՈՒՐ"]
[null,null,null,null,null,null,null,null,null,null,null,null,null,null,null,null,null,null,null,null,null,null,null,null,null,null,null,null,null,null,null,null,null,null,null,null,"ՔԱՐԱՇԵՆ"]

{"sheet":"Templates","index":1,"n_rows":18,"n_cols":226,"rows_kept":18,"cut":false,"hidden":true,"merged":[]}
[]
["PropertySection1_1Template",null,null,null,null,"PropertySection2_1Template",null,null,null,null,"PropertySection2_2Template",null,null,null,null,"PropertySection3_1Template",null,null,null,null,"PropertySection3_2Template",null,null,null,null,"PropertySection4_1Template",null,null,null,null,"PropertySection4_2Template",null,null,null,null,"PropertySection5_1Template",null,null,null,null,"PropertySection6_1Template",null,null,null,null,"PropertySection6_2Template",null,null,null,null,"PropertySection6_3Template",null,null,null,null,"PropertySection7_1Template",null,null,null,null,"PropertySection7_2Template",null,null,null,null,"AccusationSection1_1Template",null,null,null,null,"AccusationSection1_2Template",null,null,null,null,"AccusationSection2_1Template",null,null,null,null,"AccusationSection2_2Template",null,null,null,null,"AccusationSection3_1Template",null,null,null,null,"AccusationSection3_1_2Template",null,null,null,null,"AccusationSection4_1Template",null,null,null,null,"PersonalInfoSection1_1Template",null,null,null,null,"PersonalInfoSection1_9Template",null,null,null,null,"PersonalInfoSection1_11Template",null,null,null,null,"PersonalInfoSection1_12Template",null,null,null,null,"PersonalInfoSection1_13_1Template",null,null,null,null,"PersonalInfoSection1_13_2Template",null,null,null,null,"PersonalInfoSection1_13_3Template",null,null,null,null,"PersonalInfoSection1_14Template",null,null,null,null,"PersonalInfoSection1_15Template",null,null,null,null,"PersonalInfoSection1_16Template",null,null,null,null,"PersonalInfoSection1_17Template",null,null,null,null,"PersonalInfoSection1_18Template",null,null,null,null,"PersonalInfoSection1_19Template",null,null,null,null,"Education2_1Template",null,null,null,null,"Education2_2Template",null,null,null,null,"Education2_3Template",null,null,null,null,"Education2_3_1Template",null,null,null,null,"Education2_4Template",null,null,null,null,"Education2_4_1Template",null,null,null,null,"Education2_5Template",null,null,null,null,"Education2_6Template",null,null,null,null,"Education2_6_1Template",null,null,null,null,"Education2_7Template",null,null,null,null,"Education2_8Template",null,null,null,null,"Education2_8_1Template",null,null,null,null,"Relation3_1Template"]
["Հ/Հ",null,null,null,null,"Հ/Հ",null,null,null,null,"Հ/Հ",null,null,null,null,"Հ/Հ",null,null,null,null,"Հ/Հ",null,null,null,null,"Հ/Հ",null,null,null,null,"Հ/Հ",null,null,null,null,"Հ/Հ",null,null,null,null,"Հ/Հ",null,null,null,null,"Հ/Հ",null,null,null,null,"Հ/Հ",null,null,null,null,"Հ/Հ",null,null,null,null,"Հ/Հ",null,null,null,null,"Հ/Հ",null,null,null,null,"Հ/Հ",null,null,null,null,"Հ/Հ",null,null,null,null,"Հ/Հ",null,null,null,null,"Հ/Հ",null,null,null,null,"Հ/Հ",null,null,null,null,"Հ/Հ",null,null,null,null,"Հ/Հ",null,null,null,null,"Հ/Հ",null,null,null,null,"Հ/Հ",null,null,null,null,"Հ/Հ",null,null,null,null,"Հ/Հ",null,null,null,null,"Հ/Հ",null,null,null,null,"Հ/Հ",null,null,null,null,"Հ/Հ",null,null,null,null,"Հ/Հ",null,null,null,null,"Հ/Հ",null,null,null,null,"Հ/Հ",null,null,null,null,"Հ/Հ",null,null,null,null,"Հ/Հ",null,null,null,null,"Հ/Հ",null,null,null,null,"Հ/Հ",null,null,null,null,"Հ/Հ",null,null,null,null,"Հ/Հ",null,null,null,null,"Հ/Հ",null,null,null,null,"Հ/Հ",null,null,null,null,"Հ/Հ",null,null,null,null,"Հ/Հ",null,null,null,null,"Հ/Հ",null,null,null,null,"Հ/Հ",null,null,null,null,"Հ/Հ",null,null,null,null,"Հ/Հ",null,null,null,null,"Հ/Հ"]
["Անունը",null,null,null,null,"Սսեփականատեր",null,null,null,null,"Սսեփականատեր",null,null,null,null,"Սսեփականատեր",null,null,null,null,"Սսեփականատեր",null,null,null,null,"Սսեփականատեր",null,null,null,null,"Սսեփականատեր",null,null,null,null,"Սսեփականատեր",null,null,null,null,"Սսեփականատեր",null,null,null,null,"Սսեփականատեր",null,null,null,null,"Սսեփականատեր",null,null,null,null,"Սսեփականատեր",null,null,null,null,"Եկամտի աղբյուրը",null,null,null,null,"Կարգապահական պատասխանատվության  ենթարկվելը ",null,null,null,null,"Հանգամանքների ամբողջական նկարագրությունը",null,null,null,null,"Վարչական պատասխանատվության տեսակը",null,null,null,null,"Հանգամանքների ամբողջական նկարագրությունը",null,null,null,null,"ՀՀ քրեական օրենսգրքի հիմք հանդիսացած հոդվածը",null,null,null,null,"ՀՀ քրեական դատավարության օրենսգրքի համապատասխան հոդվածը",null,null,null,null,"Գույքային պարտավորության տեսակը",null,null,null,null,"Այլ անունը կամ ծածկանունը, որը օգտագործել եք։ \n",null,null,null,null,"Հասցե",null,null,null,null,"Սոցիալական ցանցերի անվանումներ  ",null,null,null,null,"Բլոգային հաշիվները կամ վեբ կայքերի, օգտատիրոջ անվանումը",null,null,null,null,"Պարտադիր զինվորական ծառայության սկիզբ-Ավարտ /օրը, ամիսը, տարին/\n",null,null,null,null,"Պայմանագրային զինվորական ծառայության սկիզբ-Ավարտ /օրը, ամիսը, տարին/\n",null,null,null,null,"Մասնակցությունը պահեստազորի պատրաստության շրջանակներում կազմակերպված վարժական հավաքների",null,null,null,null,"Արտոնագրի/հավաստագրի անվանումը",null,null,null,null,"Կազմակերպության անվանումը ",null,null,null,null,"Կուսակցության անվանումը",null,null,null,null,"Պաշտոնը, որի համար մասնակցել եք մրցույթի",null,null,null,null,"Նշեք հետաքրքրությունների այն ոլորտը կամ գործունեությունը, որտեղ որոշակի ձեռքբերումներ եք ունեցել (սպորտ, մշակույթ, հոբբի և այլն)",null,null,null,null,"Պարգևի/մրցանակի անվանումը",null,null,null,null,"Դպրոցի անվանումը",null,null,null,null,"Կրթական հաստատության անվանումը",null,null,null,null,"Կրթական հաստատության",null,null,null,null,"Անուն",null,null,null,null,"Կրթական հաստատության",null,null,null,null,"Անուն",null,null,null,null,"Կրթաթոշակի կամ դրամաշնորհի տեսակը/անվանումը ",null,null,null,null,"Գործատուի անվանումը",null,null,null,null,"Անուն",null,null,null,null,"Գործատուի  ",null,null,null,null,"Կազմակերպության անունը",null,null,null,null,"Անուն",null,null,null,null,"Կապը հավակնորդի հետ "]
["Ազգանունը",null,null,null,null,"Առկա անշարժ գույքի տեսակը",null,null,null,null,"Առկա տրանսպորտի տեսակը",null,null,null,null,"Ընկերության լրիվ անվանումը",null,null,null,null,"Արժեթղթի  տեսակը ",null,null,null,null,"Պարտապանի անվանումը կամ անունը, ազգանունը, հայրանունը",null,null,null,null,"Բանկի անվանումը",null,null,null,null,"Առկա թանկարժեք գույքի տեսակը",null,null,null,null,"Առկա դրամական միջոց",null,null,null,null,"Առկա դրամական միջոց",null,null,null,null,"Առկա կանխիկ դրամ",null,null,null,null,"Եկամտի տեսակը",null,null,null,null,"Եկամտի տարեկան չափը",null,null,null,null,"Տարին",null,null,null,null,"Տեղեկություներ, եթե կարգապահական պատասխանատվության ենթարկելու վերաբերյալ որոշումը բողոքարկվել է և բողոքարկման հիմքը",null,null,null,null,"Վարչական պատասխանատվության հիմքը",null,null,null,null,"Տեղեկություներ, եթե կարգապահական պատասխանատվության ենթարկելու վերաբերյալ որոշումը բողոքարկվել է, բողոքարկող կողմը և բողոքարկման հիմքը",null,null,null,null,"Դատական ակտի տեսակը (գործի համարը, պատժատեսակ) ",null,null,null,null,"Քրեական հետապնդման մարմնի կողմից կայացված որոշումը",null,null,null,null,"Գույքային պարտավորության հիմքը",null,null,null,null,"Ժամանակահատվածը, երբ օգտագործել եք այդ անունը",null,null,null,null,"Մարզ",null,null,null,null,"Օգտատիրոջ հղումը",null,null,null,null,"Օգտագործման մոտավոր ժամանակահատվածը սկիզբ\n(տարեթիվ)",null,null,null,null,"սկիզբ",null,null,null,null,"սկիզբ",null,null,null,null,"Սկիզբ-ավարտ\n(տարիներով)\n\n",null,null,null,null,"Գործողության սկիզբ-ավարտ օրը, ամիսը, տարին",null,null,null,null,"Զբաղեցրած դիրքը/պաշտոնը",null,null,null,null,"Զբաղեցրած դիրքը/պաշտոնը",null,null,null,null,"Օրը, ամիսը, տարին",null,null,null,null,"Ոլորտը",null,null,null,null,"Տարին",null,null,null,null,"Սկիզբ-ավարտ (տարիներով)",null,null,null,null,"Սկիզբ-ավարտ\nօրը, ամիսը, տարին",null,null,null,null,"անվանումը",null,null,null,null,"Ազգանուն",null,null,null,null,"անվանումը",null,null,null,null,"Ազգանուն",null,null,null,null,"Սկիզբ-ավարտ /օր, ամիսը, տարին/",null,null,null,null,"Սկիզբ-ավարտ /օր, ամիսը, տարին/",null,null,null,null,"Ազգանուն",null,null,null,null,"անվանումը",null,null,null,null,"Սկիզբ-ավարտ (տարին)",null,null,null,null,"Ազգանուն",null,null,null,null,"Անունը"]
["Հայրանունը",null,null,null,null,"Սեփականության իրավունքի տեսակը",null,null,null,null,"Մակնիշը, սերիան",null,null,null,null,"Արժեթղթի կամ այլ ներդրման տեսակը ",null,null,null,null,"Ձեռքբերման ամսաթիվ",null,null,null,null,"Պարտապանի հասցեն",null,null,null,null,"Բանկի հասցեն (օտարերկրյա բանկի դեպքում)",null,null,null,null,"Թանկարժեք գույքի նկարագրությունը",null,null,null,null,"գումարը (չափը)",null,null,null,null,"Տեսակը",null,null,null,null,"գումարը (չափը)",null,null,null,null,"Եկամուտ վճարող կազմակերպության անվանումը կամ ֆիզիկական անձի անունը, ազգանունը և հայրանունը",null,null,null,null,"Եկամտի ստացման տարիները",null,null,null,null,"Կազմակերպության/գործատուի անվանումը",null,null,null,null,"Բողոքարկման արդյունքում կայացված վերջնական ուժի մեջ մտած որոշումը (գործի համարը)",null,null,null,null,"Օրը, ամիսը, տարին",null,null,null,null,"Բողոքարկման արդյունքում կայացված վերջնական ուժի մեջ մտած որոշումը (գործի համարը)",null,null,null,null,null,null,null,null,null,"Քրեական հետապնդում իրականացնող մարմնի անվանումը",null,null,null,null,"Գործի համարը",null,null,null,null,"սկիզբ",null,null,null,null,"Քաղաք/Համայնք",null,null,null,null,"Օգտագործման մոտավոր ժամանակահատվածը (տարեթվերով)",null,null,null,null,"սկիզբ",null,null,null,null,"ավարտ",null,null,null,null,"ավարտ",null,null,null,null,"սկիզբ",null,null,null,null,"սկիզբ",null,null,null,null,"Անդամակցության սկիզբ-ավարտ \nօրը, ամիսը, տարին",null,null,null,null,"Անդամակցության սկիզբ-ավարտ \nօրը, ամիսը, տարին",null,null,null,null,"Մրցույթի արդյունքում կայացված որոշումը",null,null,null,null,"Ժամանակահատվածը",null,null,null,null,"Հիմքը",null,null,null,null,"սկիզբ",null,null,null,null,"սկիզբ",null,null,null,null,"հասցեն",null,null,null,null,"Հեռախոսի համար",null,null,null,null,"հասցեն",null,null,null,null,"Հեռախոսի համար",null,null,null,null,"սկիզբ",null,null,null,null,"սկիզբ",null,null,null,null,"Հեռախոսի համար",null,null,null,null,"հասցե",null,null,null,null,"սկիզբ",null,null,null,null,"Հեռախոսի համար",null,null,null,null,"Ազգանունը"]
["Անուն, Ազգանուն, Հայրանուն",{"$f":"B4&\" \"&B5&\" \"&B6","v":"  "},null,null,null,"Հայտարարատու սեփականատիրոջ բաժինը",null,null,null,null,"Թողարկման տարին  ",null,null,null,null,"Ձեռքբերման ամսաթիվ",null,null,null,null,"Ձեռք բերելու եղանակը",null,null,null,null,"Տրված փոխառության ",null,null,null,null,"Տվյալ բանկում առկա ավանդի",null,null,null,null,"Թանկարժեք գույքի ձեռք բերելու տարին ",null,null,null,null,"արժույթը",null,null,null,null,"գումարը (չափը)",null,null,null,null,"արժույթը",null,null,null,null,"Եկամուտ վճարողի հասցեն",null,null,null,null,"սկիզբ",null,null,null,null,"Կարգապահական պատասխանատվության տեսակը",null,null,null,null,null,null,null,null,null,"Վարչական պատասխանատվություն կիրառող մարմինը",null,null,null,null,null,null,null,null,null,null,null,null,null,null,null,null,null,null,null,"Վերջնական դատական ակտի(վճիռը) համարը և այլ մանրամասներ",null,null,null,null,"ավարտ",null,null,null,null,"Փողոց",null,null,null,null,"սկիզբ",null,null,null,null,"ավարտ",null,null,null,null,"Զինվորական ծառայության վայրը",null,null,null,null,"Զինվորական ծառայության վայրը",null,null,null,null,"ավարտ",null,null,null,null,"ավարտ",null,null,null,null,"սկիզբ",null,null,null,null,"սկիզբ",null,null,null,null,"Տեղեկություններ, եթե մրցույթի արդյունքները բողոքարկվել/վիճարկվել են",null,null,null,null,"Ձեռք բերված տիտղոս, աստիճան կամ կարգ (եթե կիրառելի է)",null,null,null,null,"Շնորհող պետական մարմինը (կազմակերպությունը)",null,null,null,null,"ավարտ",null,null,null,null,"ավարտ",null,null,null,null,"Սկիզբ-ավարտ\nտարին",null,null,null,null,"Էլ․ փոստի հասցե",null,null,null,null,"Սկիզբ-ավարտ\nՏարին",null,null,null,null,"Էլ․ փոստի հասցե",null,null,null,null,"ավարտ",null,null,null,null,"ավարտ",null,null,null,null,"Էլ․ փոստի հասցե",null,null,null,null,"օրը, ամիսը, տարին",null,null,null,null,"ավարտ",null,null,null,null,"Էլ․ փոստի հասցե",null,null,null,null,"Հայրանունը"]
["Կապը հայտարարատու  թեկնածուի հետ",null,null,null,null,"Գտնվելու երկիրը",null,null,null,null,"Նույնականացման համարը",null,null,null,null,"Ձեռք բերելու եղանակը",null,null,null,null,"Գործարքի մյուս կողմի անվանումը կամ անունը, ազգանունը, հայրանունը, հասցեն ",null,null,null,null,"գումարը",null,null,null,null,"գումարը",null,null,null,null,"Թանկարժեք գույքը ձեռք բերելու եղանակը",null,null,null,null,"Ծագման աղբյուրը",null,null,null,null,"արժույթը",null,null,null,null,"Ծագման աղբյուրը",null,null,null,null,"Ստացված եկամտի",null,null,null,null,"ավարտ",null,null,null,null,"Կարգապահական պատասխանատվության հիմքը",null,null,null,null,null,null,null,null,null,null,null,null,null,null,null,null,null,null,null,null,null,null,null,null,null,null,null,null,null,null,null,null,null,null,"Անվան փոփոխության պատճառը/փոփոխված անվան օգտագործման դադարեցման պատճառը",null,null,null,null,"Համար",null,null,null,null,"ավարտ",null,null,null,null,"Կազմակերպությունը կամ անձը, որի անունով գործարկել եք բլոգային հաշիվը կամ կայքը",null,null,null,null,"Զինվորական ծառայության վերջին ",null,null,null,null,"Զինվորական ծառայության վերջին ",null,null,null,null,"Եթե չեք մասնակցել, ներկայացրեք պատճառները",null,null,null,null,"Արտոնագիր/հավաստագիր տրամադրող կառույցը",null,null,null,null,"ավարտ",null,null,null,null,"ավարտ",null,null,null,null,"Բողոքարկման արդյունքում կայացված վերջնական ուժի մեջ մտած որոշումը",null,null,null,null,null,null,null,null,null,null,null,null,null,null,"Ստացած վկայականը (կրթական աստիճանը)",null,null,null,null,"Ստացած վկայականը (կրթական աստիճանը)",null,null,null,null,"սկիզբ",null,null,null,null,null,null,null,null,null,"սկիզբ",null,null,null,null,null,null,null,null,null,"Կրթաթոշակի կամ դրամաշնորհի ",null,null,null,null,"Զբաղեցրած պաշտոնը",null,null,null,null,null,null,null,null,null,"Զբաղեցրած պաշտոնը",null,null,null,null,"Զբաղեցրած պաշտոնը",null,null,null,null,null,null,null,null,null,"Ծննդյան օրը, ամիսը, տարին "]
["Ծննդյան օրը, ամիսը, տարին",null,null,null,null,"Գտնվելու վայրի հասցեն",null,null,null,null,"Տրանսպորտի միջոցի  ձեռք բերելու օրը, ամիսը, տարին",null,null,null,null,"Գործարքի մյուս կողմի անվանումը կամ անունը, ազգանունը, հայրանունը, հասցեն ",null,null,null,null,"Առկա պարտքային և այլ արժեթղթերի",null,null,null,null,"արժույթը",null,null,null,null,"արժույթը",null,null,null,null,"Ձեռքբերման արժեքը (գինը)",null,null,null,null,null,null,null,null,null,"Ծագման աղբյուրը",null,null,null,null,null,null,null,null,null,"գումարը ",null,null,null,null,null,null,null,null,null,null,null,null,null,null,null,null,null,null,null,null,null,null,null,null,null,null,null,null,null,null,null,null,null,null,null,null,null,null,null,null,null,null,null,null,null,null,null,null,null,"Տուն/Շենք",null,null,null,null,"Հնարավորության դեպքում նշել հաշվի  դադարեցման պատճառը",null,null,null,null,null,null,null,null,null,"պաշտոնը",null,null,null,null,"պաշտոնը",null,null,null,null,null,null,null,null,null,"Արտոնագրի/հավաստագրի տեսակը",null,null,null,null,"Անդամակցության դադարեցման պատճառը (եթե վերաբերելի է)",null,null,null,null,"Անդամակցության դադարեցման պատճառը (եթե վերաբերելի է)",null,null,null,null,null,null,null,null,null,null,null,null,null,null,null,null,null,null,null,null,null,null,null,null,null,null,null,null,null,"ավարտ",null,null,null,null,null,null,null,null,null,"ավարտ",null,null,null,null,null,null,null,null,null,"չափը",null,null,null,null,"Աշխատանքը դադարեցնելու պատճառը",null,null,null,null,null,null,null,null,null,"Հիմքը/առիթը",null,null,null,null,"դադարեցնելու պատճառը",null,null,null,null,null,null,null,null,null,"Գործատուի անվանումը "]
["Հանրային ծառայությունների համարանիշը (առկայության դեպքում) ",null,null,null,null,"Անշարժ գույքի հաշվառման համարը",null,null,null,null,"Տրանսպորտի միջոցի ձեռք բերելու եղանակը",null,null,null,null,"Առկա բաժնային արժեթղթի կամ այլ ներդրման",null,null,null,null,"Արժեքը (գինը)",null,null,null,null,null,null,null,null,null,null,null,null,null,null,"Արժույթը ",null,null,null,null,null,null,null,null,null,null,null,null,null,null,null,null,null,null,null,"արժույթը",null,null,null,null,null,null,null,null,null,null,null,null,null,null,null,null,null,null,null,null,null,null,null,null,null,null,null,null,null,null,null,null,null,null,null,null,null,null,null,null,null,null,null,null,null,null,null,null,null,"Բնակարան",null,null,null,null,null,null,null,null,null,null,null,null,null,null,"կոչումը",null,null,null,null,"կոչումը",null,null,null,null,null,null,null,null,null,null,null,null,null,null,null,null,null,null,null,null,null,null,null,null,null,null,null,null,null,null,null,null,null,null,null,null,null,null,null,null,null,null,null,null,null,null,null,null,null,"Ստացած վկայականը, կրթական աստիճանը",null,null,null,null,null,null,null,null,null,"Ստացած վկայականը (կրթական աստիճանը)",null,null,null,null,null,null,null,null,null,"արժույթը",null,null,null,null,null,null,null,null,null,null,null,null,null,null,"Խրախուսանքի տեսակը",null,null,null,null,null,null,null,null,null,null,null,null,null,null,"Զբաղեցրած պաշտոնը"]
["Քաղաքացիությունը",null,null,null,null,"Անշարժ գույքի մակերեսը",null,null,null,null,"Ձեռքբերման",null,null,null,null,"Արժեքը (գինը)",null,null,null,null,"Արժույթը",null,null,null,null,null,null,null,null,null,null,null,null,null,null,null,null,null,null,null,null,null,null,null,null,null,null,null,null,null,null,null,null,null,null,"Բնամթերային ձևով ստացված եկամուտը",null,null,null,null,null,null,null,null,null,null,null,null,null,null,null,null,null,null,null,null,null,null,null,null,null,null,null,null,null,null,null,null,null,null,null,null,null,null,null,null,null,null,null,null,null,null,null,null,null,"Բնակվելու ժամանակահատվածը",null,null,null,null,null,null,null,null,null,null,null,null,null,null,null,null,null,null,null,null,null,null,null,null,null,null,null,null,null,null,null,null,null,null,null,null,null,null,null,null,null,null,null,null,null,null,null,null,null,null,null,null,null,null,null,null,null,null,null,null,null,null,null,null,null,null,null,null,null,"Ավարտական (մագիստրոսական, դիպլոմային) թեզի թեման (եթե առկա է)",null,null,null,null,null,null,null,null,null,"Ավարտական /գիտական աշխատանքի թեման (եթե առկա է)",null,null,null,null,null,null,null,null,null,"Տրամադրող կազմակերպությունը",null,null,null,null,null,null,null,null,null,null,null,null,null,null,null,null,null,null,null,null,null,null,null,null,null,null,null,null,null,"Պաշտոնավարման ժամկետը /Օրը, ամիսը, տարին/"]
["Հաշվառման հասցեն",null,null,null,null,"Չափման միավոր",null,null,null,null,"գինը (արժեքը)",null,null,null,null,"Արժույթը",null,null,null,null,null,null,null,null,null,null,null,null,null,null,null,null,null,null,null,null,null,null,null,null,null,null,null,null,null,null,null,null,null,null,null,null,null,null,null,null,null,null,null,null,null,null,null,null,null,null,null,null,null,null,null,null,null,null,null,null,null,null,null,null,null,null,null,null,null,null,null,null,null,null,null,null,null,null,null,null,null,null,null,null,null,null,null,null,null,"սկիզբ",null,null,null,null,null,null,null,null,null,null,null,null,null,null,null,null,null,null,null,null,null,null,null,null,null,null,null,null,null,null,null,null,null,null,null,null,null,null,null,null,null,null,null,null,null,null,null,null,null,null,null,null,null,null,null,null,null,null,null,null,null,null,null,null,null,null,null,null,null,null,null,null,null,null,null,null,null,null,null,null,null,null,null,null,null,null,null,null,null,"Կրթաթոշակը (դրամաշնորհը) դադարեցնելու պատճառը  ",null,null,null,null,null,null,null,null,null,null,null,null,null,null,null,null,null,null,null,null,null,null,null,null,null,null,null,null,null,"սկիզբ"]
["Բնակության հասցեն",null,null,null,null,"Չափը",null,null,null,null,"արժույթը",null,null,null,null,"Բաժնեմասնակցության %",null,null,null,null,null,null,null,null,null,null,null,null,null,null,null,null,null,null,null,null,null,null,null,null,null,null,null,null,null,null,null,null,null,null,null,null,null,null,null,null,null,null,null,null,null,null,null,null,null,null,null,null,null,null,null,null,null,null,null,null,null,null,null,null,null,null,null,null,null,null,null,null,null,null,null,null,null,null,null,null,null,null,null,null,null,null,null,null,null,"ավարտ",null,null,null,null,null,null,null,null,null,null,null,null,null,null,null,null,null,null,null,null,null,null,null,null,null,null,null,null,null,null,null,null,null,null,null,null,null,null,null,null,null,null,null,null,null,null,null,null,null,null,null,null,null,null,null,null,null,null,null,null,null,null,null,null,null,null,null,null,null,null,null,null,null,null,null,null,null,null,null,null,null,null,null,null,null,null,null,null,null,"Մեկնաբանություններ",null,null,null,null,null,null,null,null,null,null,null,null,null,null,null,null,null,null,null,null,null,null,null,null,null,null,null,null,null,"ավարտ  (եթե վերաբերելի է)"]
["Պաշտոնը (աշխատանքային գործունեությունը)",null,null,null,null,"Անշարժ գույքը ձեռք բերելու օրը, ամիսը, տարին",null,null,null,null,null,null,null,null,null,null,null,null,null,null,null,null,null,null,null,null,null,null,null,null,null,null,null,null,null,null,null,null,null,null,null,null,null,null,null,null,null,null,null,null,null,null,null,null,null,null,null,null,null,null,null,null,null,null,null,null,null,null,null,null,null,null,null,null,null,null,null,null,null,null,null,null,null,null,null,null,null,null,null,null,null,null,null,null,null,null,null,null,null,null,null,null,null,null,null,null,null,null,null,null,null,null,null,null,null,null,null,null,null,null,null,null,null,null,null,null,null,null,null,null,null,null,null,null,null,null,null,null,null,null,null,null,null,null,null,null,null,null,null,null,null,null,null,null,null,null,null,null,null,null,null,null,null,null,null,null,null,null,null,null,null,null,null,null,null,null,null,null,null,null,null,null,null,null,null,null,null,null,null,null,null,null,null,null,null,null,null,null,null,null,null,null,null,null,null,null,null,null,null,null,null,null,null,null,null,null,null,null,null,null,null,null,null,null,null,"Պաշտոնը դադարեցնելու պատճառը (եթե վերաբերելի է)"]
["Գործատուի անվանումը",null,null,null,null,"Անշարժ գույքը ձեռք բերելու եղանակը"]
[null,null,null,null,null,"Ձեռքբերման"]
[null,null,null,null,null,"գինը (արժեքը)"]
[null,null,null,null,null,"արժույթը"]

{"sheet":"ForPDF","index":2,"n_rows":24,"n_cols":9,"rows_kept":24,"cut":false,"hidden":true,"merged":[[11,3,12,3],[16,3,17,3],[16,4,17,4],[16,5,17,5],[16,6,16,7],[16,8,17,8],[14,4,14,7],[20,4,20,7],[22,4,22,7],[22,3,23,3],[23,4,23,7]]}
[]
[]
[]
[]
[]
[]
[]
[null,null,null,"1. ՀԱՎԱԿՆՈՐԴ/ԹԵԿՆԱԾՈՒԻ ԱՆՁՆԱԿԱՆ ՏՎՅԱԼՆԵՐ"]
[]
[null,null,null,"Կենսագրական տվյալներ"]
[]
[null,null,null,1,null,"Անուն","Ազգանուն","Հայրանուն"]
[null,null,null,null,null,"ddddd","hhhh","abxhasbch"]
[]
[null,null,null,2,"Օգտագործել եք արդյոք այլ անուններ կամ ծածկանուններ\nԵթե անվան փոփոխությունը պայմանավորված է ամուսնությամբ, խնդրում ենք կատարել նշում այդ մասին",null,null,null,"Այո"]
[]
[null,null,null,2.1,"Հ/Հ","Այլ անունը կամ ծածկանունը, որը օգտագործել եք։ \n","Ժամանակահատվածը, երբ օգտագործել եք այդ անունը",null,"Անվան փոփոխության պատճառը/փոփոխված անվան օգտագործման դադարեցման պատճառը"]
[null,null,null,null,null,null,"սկիզբ","ավարտ"]
[]
[]
[null,null,null,3,"Ծննդյան օր, ամիս, տարի",null,null,null,{"$f":"PersonalInfo!E29","v":"00:00:00"}]
[]
[null,null,null,4,"Հանրային ծառայությունների համարանիշ",null,null,null,{"$f":"PersonalInfoMyIDContent","v":0}]
[null,null,null,null,"Անձը հաստատող փաստաթուղթ",null,null,null,{"$f":"IF(AND(PersonalInfo!E37<>\"\",PersonalInfo!E39<>\"\"),PersonalInfo!E37&PersonalInfo!F37&\", \"&PersonalInfo!E39&PersonalInfo!F39,PersonalInfo!E37&PersonalInfo!F37&PersonalInfo!E39&PersonalInfo!F39)","v":""}]

{"sheet":"Main","index":3,"n_rows":25,"n_cols":3,"rows_kept":25,"cut":false,"hidden":false,"merged":[[7,2,19,5]]}
[]
[]
[]
[]
[]
[]
[]
[null,null,"Հարգելի թեկնածու, \n\nՈրպես պետական պաշտոնում նշանակման ենթակա անձ՝ թեկնածու, խնդրում ենք լրացնել բարեվարքության վերաբերյալ հարցաթերթիկը։ \nՁեզ մաղթում ենք հաջողություն։\n\nՀարցաթերթիկը բաղկացած է \n1. Անձնական տվյալներ,\n2. Կրթության, աշխատանքային փորձի վերաբերյալ տեղեկություններ, \n3. Փոխկապակցվախ պաշտոնատար անձնաց վերաբերյալ տեղեկություններ,\n4. Քրեական, վարչական, կարգապահական պատասխանատվության վերաբերյալ տեղեկություններ, \n5. Գույքային դրություն բաժիններից։ \n\nՀարցաթերթիկն անհրաժեշտ է լրացնել հետևյալ կերպ․\n1․ Յուրաքանչյուր բաժնի հարցերի դաշտում՝ ձախ կողմում, գտնվող «ավելացնել» կոճակի միջոցով ավելացնել նոր սյուն և լրացնել Ձեզ վերաբերելի հարցի պատասխանը։ Մի քանի պատասխանի առկայության դեպքում նույն կոճակի միջոցով կարող եք համապատասխանաբար ավելացնել մի քանի սյուն։ Նույն սկզբունքով պատասխանը սխալ լինելու դեպքում կամ հեռացնելու համար անհրաժեշտ է սեղմել «ջնջել» կոճակը։ \n2․ Այն հարցերը, որոնք Ձեզ վերաբերելի չեն կամ Դուք այդ հարցերի պատասխանները չունեք, պետք չէ սյուն ավելացնել կամ ինչ-որ բան լրացնել։ Այդ հատվածները խնդրում ենք թողնել առանց լրացնելու։ \n3․ Հարցաթերթիկն ամբողջությամբ լրացնելուց հետո անրաժեշտ է սեղմել «ստուգել լրացման ամբողջականությունը» կոճակը։ Նոր բացվող պատուհանը Ձեզ կհուշի և կարմիրով կընդգծի այն հարցերը, որոնք չեն լրացվել։ Դուք կարող եք ետ վերադառնալ համապատասխան բաժնի համապատասխան հարցին և շտկել բաց թողումը կամ լրացնել չլրացված դաշտը։ \n4․ Հարցաթերթիկը լրացնելուց, տվյալների և լրացման ենթակա դաշտերի ամբողջականությունը ստուգելուց հետո անհրաժեշտ է սեղմել «Արտահանել PDF» կոճակը։ \n5․ Համակարգն ավտոմատ կերպով ամբողջականացնում է Ձեր լրացրած հարցերի պատասխանները PDF ձևաչափով, անհրաժեշտ է այդ տարբերակը տպել, ստորագրել ուրաքանչյուր էջի տակ և տպված տարբերակը ներկայացնել մրցույթն անցկացնող մարմին։  \nԱմբողջականացված PDF փաստաթղթում տառաչափը հնարավոր է ավելի փոքր լինի՝ կախված լրացված դաշտերի քանակից։ Դուք այդ ձևաչափը ինքնուրույն փոխելու կարիք չունեք, անհրաժեշտ է ստորագրել հենց այդ տարբերակի վրա, քանի որ տվյալները ստացվում են նաև էլեկտրոնային տարբերակով։  \nԼրացված հարցաթերթիկի էլեկտրոնային տարբերակը Microsoft Excel ձևաչափով պահպանվում է Ձեր համակարգչում, անհրաժեշտ է այն էլեկտրոնային փոստով ուղարկել integrity@cpcarmenia.am էլեկտրոնային հասցեով։ \n\n"]
[]
[]
[]
[]
[]
[]
[]
[]
[]
[]
[]
[]
[]
[null,null,"Անուն"]
[null,null,"Ազգանուն"]
[null,null,"Հայրանուն"]
[null,null,"Ամսաթիվ"]

{"sheet":"PersonalInfo","index":4,"n_rows":191,"n_cols":6,"rows_kept":191,"cut":false,"hidden":false,"merged":[[37,3,38,3],[39,3,44,3],[61,2,71,2],[59,2,59,5],[28,4,28,5],[29,4,29,5],[30,3,32,3],[33,3,34,3],[33,4,33,5],[130,2,130,7],[73,2,74,2],[73,3,74,3],[15,2,17,2],[21,2,26,2],[29,2,38,2],[39,2,44,2],[48,2,53,2],[46,3,46,4],[48,3,53,3],[54,3,55,3],[56,3,57,3],[54,2,55,2],[56,2,57,2],[34,4,34,5],[35,3,36,3],[101,2,108,2],[112,2,119,2],[123,2,128,2],[76,2,76,5],[78,2,84,2],[88,2,93,2],[86,2,86,7],[192,2,200,7],[176,2,180,2],[184,2,188,2],[132,2,133,2],[137,2,143,2],[147,2,153,2],[157,2,163,2],[167,2,172,2]]}
[]
[]
[]
[]
[]
[]
[]
[]
[]
[]
[]
[null,null,"1. ՀԱՎԱԿՆՈՐԴ/ԹԵԿՆԱԾՈՒԻ ԱՆՁՆԱԿԱՆ ՏՎՅԱԼՆԵՐ"]
[]
[null,null,"Կենսագրական տվյալներ"]
[]
[null,null,1,"Անուն",{"$f":"MainName","v":0}]
[null,null,null,"Ազգանուն",{"$f":"MainSurname","v":0}]
[null,null,null,"Հայրանուն",{"$f":"MainMiddleName","v":0}]
[]
[{"$f":"OR(E20=ArmenianYes,E20=ArmenianNo)","v":false},null,2,"Օգտագործել եք արդյոք այլ անուններ կամ ծածկանուններ\nԵթե անվան փոփոխությունը պայմանավորված է ամուսնությամբ, խնդրում ենք կատարել նշում այդ մասին"]
[]
[null,null,2.1,"Հ/Հ"]
[{"$f":"IF(PersonalInfoYesNo1=ArmenianYes,AND(COUNTA($E$22:$N$22)>0,COUNTA($E$22:$N$22)=COUNTA(E23:N23)),TRUE)","v":true},null,null,"Այլ անունը կամ ծածկանունը, որը օգտագործել եք։ \n"]
[null,null,null,"Ժամանակահատվածը, երբ օգտագործել եք այդ անունը"]
[{"$f":"IF(PersonalInfoYesNo1=ArmenianYes,AND(COUNTA($E$22:$N$22)>0,COUNTA($E$22:$N$22)=COUNTA(E25:N25)),TRUE)","v":true},null,null,"սկիզբ"]
[null,null,null,"ավարտ"]
[{"$f":"IF(PersonalInfoYesNo1=ArmenianYes,AND(COUNTA($E$22:$N$22)>0,COUNTA($E$22:$N$22)=COUNTA(E27:N27)),TRUE)","v":true},null,null,"Անվան փոփոխության պատճառը/փոփոխված անվան օգտագործման դադարեցման պատճառը"]
[]
[{"$f":"E29<>\"\"","v":false},null,3,"Ծննդյան օր, ամիս, տարի"]
[{"$f":"E30<>\"\"","v":false},null,4,"Հանրային ծառայությունների համարանիշ"]
[null,null,null,"Անձը հաստատող փաստաթուղթ","Նույնականացման քարտ"]
[null,null,null,null,"ՀՀ անձնագիր"]
[{"$f":"OR(PersonalInfoID=ArmenianYes,PersonalInfoPassport=ArmenianYes,PersonalInfoBiometric=ArmenianYes)","v":false},null,null,null,"ՀՀ բիոմետրիկ անձնագիր"]
[null,null,null,"Նույնականացման քարտ","Համար"]
[{"$f":"IF(PersonalInfoID=ArmenianYes,PersonalInfoMyIDContent<>\"\",TRUE)","v":true}]
[null,null,null,"ՀՀ անձնագիր","Սերիա","Համար"]
[{"$f":"IF(PersonalInfoPassport=ArmenianYes,AND(E37<>\"\",F37<>\"\"),TRUE)","v":true}]
[null,null,null,"ՀՀ բիոմետրիկ անձնագիր","Սերիա","Համար"]
[{"$f":"IF(PersonalInfoBiometric=ArmenianYes,AND(E39<>\"\",F39<>\"\"),TRUE)","v":true}]
[{"$f":"F40<>\"\"","v":false},null,5,"Հաշվառման հասցե","Մարզ"]
[{"$f":"F41<>\"\"","v":false},null,null,null,"Քաղաք/Համայնք"]
[false,null,null,null,"Փողոց"]
[false,null,null,null,"Համար"]
[false,null,null,null,"Տուն/Շենք"]
[{"$f":"IF(PersonalInfoBld1=Lists!$C$3,F45<>\"\",TRUE)","v":true},null,null,null,"Բնակարան"]
[]
[{"$f":"OR(PersonalInfoYesNo2=ArmenianYes,PersonalInfoYesNo2=ArmenianNo)","v":false},null,6,"Բնակության հասցեն տարբերվում է հաշվառման հասցեից"]
[]
[{"$f":"IF(PersonalInfoYesNo2=ArmenianYes,F49<>\"\",TRUE)","v":true},null,6.1,"Բնակության հասցե","Մարզ"]
[{"$f":"IF(PersonalInfoYesNo2=ArmenianYes,F50<>\"\",TRUE)","v":true},null,null,null,"Քաղաք/Համայնք"]
[{"$f":"IF(PersonalInfoYesNo2=ArmenianYes,F51<>\"\",TRUE)","v":true},null,null,null,"Փողոց"]
[{"$f":"IF(PersonalInfoYesNo2=ArmenianYes,F52<>\"\",TRUE)","v":true},null,null,null,"Համար"]
[{"$f":"IF(PersonalInfoYesNo2=ArmenianYes,F53<>\"\",TRUE)","v":true},null,null,null,"Տուն/Շենք"]
[{"$f":"IF(AND(PersonalInfoYesNo2=ArmenianYes,PersonalInfoBld2=Lists!$C$3),F54<>\"\",TRUE)","v":true},null,null,null,"Բնակարան"]
[{"$f":"F55<>\"\"","v":false},null,7,"Հեռախոսահամար","բջջային"]
[null,null,null,null,"քաղաքային /առկայության դեպքում/"]
[null,null,8,"Էլեկտրոնային փոստի հասցե",1,2]
[{"$f":"OR(E58<>\"\",F58<>\"\")","v":false}]
[]
[null,null,"Ստորև թվարկեք բնակության այն հասցեները, որտեղ բնակվել եք վերջին 5 տարում\n(խնդրում ենք թվարկել հակառակ ժամանակագրական հերթականությամբ)"]
[]
[null,null,9,"Հ/Հ"]
[null,null,null,"Հասցե"]
[{"$f":"COUNTA($E$62:$N$62)=COUNTA(E64:N64)","v":true},null,null,"Մարզ"]
[{"$f":"COUNTA($E$62:$N$62)=COUNTA(E65:N65)","v":true},null,null,"Քաղաք/Համայնք"]
[true,null,null,"Փողոց"]
[true,null,null,"Համար"]
[true,null,null,"Տուն/Շենք"]
[true,null,null,"Բնակարան"]
[null,null,null,"Բնակվելու ժամանակահատվածը"]
[{"$f":"COUNTA($E$62:$N$62)=COUNTA(E71:N71)","v":true},null,null,"սկիզբ"]
[{"$f":"COUNTA($E$62:$N$62)=COUNTA(E72:N72)","v":true},null,null,"ավարտ"]
[]
[null,null,10,"Քաղաքացիություն (նշել, եթե երկքաղաքացի եք)",1,2]
[null,null,null,null,"Հայաստանի Հանրապետություն"]
[]
[null,null,"Սոցիալական ցանցերի հաշիվներ \n(խնդրում ենք թվարկել բոլոր հաշիվները, որոնք օգտագործել եք վերջին 5 տարիներին և օգտատիրոջ անվանումը)"]
[]
[null,null,11,"Հ/Հ"]
[{"$f":"COUNTA($E$79:$N$79)=COUNTA(E80:N80)","v":true},null,null,"Սոցիալական ցանցերի անվանումներ  "]
[{"$f":"COUNTA($E$79:$N$79)=COUNTA(E81:N81)","v":true},null,null,"Օգտատիրոջ հղումը"]
[null,null,null,"Օգտագործման մոտավոր ժամանակահատվածը (տարեթվերով)"]
[{"$f":"COUNTA($E$79:$N$79)=COUNTA(E83:N83)","v":true},null,null,"սկիզբ"]
[null,null,null,"ավարտ"]
[null,null,null,"Հնարավորության դեպքում նշել հաշվի  դադարեցման պատճառը"]
[]
[null,null,"Բլոգային հաշիվները և վեբ կայքերը, որոնք փաստացի կառավարել եք վերջին 5 տարիների ընթացքում Ձեր անունից, ընկերության կամ կազմակերպության անունից կամ ձեր կողմից օգտագործվող ծածկանվամբ:"]
[]
[null,null,12,"Հ/Հ"]
[{"$f":"COUNTA($E$89:$N$89)=COUNTA(E90:N90)","v":true},null,null,"Բլոգային հաշիվների կամ վեբ կայքերի հղումը"]
[null,null,null,"Օգտագործման մոտավոր ժամանակահատվածը\n(տարեթիվ)"]
[{"$f":"COUNTA($E$89:$N$89)=COUNTA(E92:N92)","v":true},null,null,"սկիզբ"]
[null,null,null,"ավարտ"]
[{"$f":"COUNTA($E$89:$N$89)=COUNTA(E94:N94)","v":true},null,null,"Կազմակերպությունը կամ անձը, որի անունով գործարկել եք բլոգային հաշիվը կամ կայքը"]
[]
[null,null,"Զինվորական ծառայություն (եթե վերաբերելի է)\n"]
[]
[{"$f":"OR(PersonalInfoYesNo3=ArmenianYes,PersonalInfoYesNo3=ArmenianNo)","v":false},null,13,"Անցել եք արդյոք զինվորական ծառայություն"]
[]
[null,null,"Պարտադիր զինվորական ծառայություն (ներառյալ այլընտրանքային ծառայությունը)\n"]
[]
[null,null,13.1,"Հ/Հ"]
[null,null,null,"Պարտադիր զինվորական ծառայության սկիզբ-ավարտ /օրը, ամիսը, տարին/"]
[{"$f":"COUNTA($E$102:$N$102)=COUNTA(E104:N104)","v":true},null,null,"սկիզբ"]
[{"$f":"COUNTA($E$102:$N$102)=COUNTA(E105:N105)","v":true},null,null,"ավարտ"]
[true,null,null,"Զինվորական ծառայության վայրը"]
[null,null,null,"Զինվորական ծառայության վերջին"]
[{"$f":"COUNTA($E$102:$N$102)=COUNTA(E108:N108)","v":true},null,null,"պաշտոնը"]
[{"$f":"COUNTA($E$102:$N$102)=COUNTA(E109:N109)","v":true},null,null,"կոչումը"]
[]
[null,null,"Պայմանագրային զինվորական ծառայություն\n"]
[]
[null,null,13.2,"Հ/Հ"]
[null,null,null,"Պայմանագրային զինվորական ծառ. սկիզբ-ավարտ /օրը, ամիսը, տարին/"]
[{"$f":"COUNTA($E$113:$N$113)=COUNTA(E115:N115)","v":true},null,null,"սկիզբ"]
[{"$f":"COUNTA($E$113:$N$113)=COUNTA(E116:N116)","v":true},null,null,"ավարտ"]
[true,null,null,"Զինվորական ծառայության վայրը"]
[null,null,null,"Զինվորական ծառայության վերջին "]
[{"$f":"COUNTA($E$113:$N$113)=COUNTA(E119:N119)","v":true},null,null,"պաշտոնը"]
[{"$f":"COUNTA($E$113:$N$113)=COUNTA(E120:N120)","v":true},null,null,"կոչումը"]
[]
[{"$f":"IF(PersonalInfoYesNo3=ArmenianYes,OR(PersonalInfoYesNo4=ArmenianYes,PersonalInfoYesNo4=ArmenianNo),TRUE)","v":true},null,13.3,"Արդյոք պետական լիազոր մարմնի կողմից երբևէ կանչվե՞լ եք պահեստազորի պատրաստության շրջանակներում կազմակերպված վարժական հավաքների"]
[]
[null,null,"13.3.1","Հ/Հ"]
[{"$f":"COUNTA($E$124:$N$124)=COUNTA(E125:N125)","v":true},null,null,"Մասնակցությունը պահեստազորի պատրաստության շրջանակներում կազմակերպված վարժական հավաքների"]
[null,null,null,"Սկիզբ-ավարտ (տարիներով)\n"]
[{"$f":"COUNTA($E$124:$N$124)=COUNTA(E127:N127)","v":true},null,null,"սկիզբ"]
[{"$f":"COUNTA($E$124:$N$124)=COUNTA(E128:N128)","v":true},null,null,"ավարտ"]
[null,null,null,"Եթե չեք մասնակցել, ներկայացրեք պատճառները"]
[]
[null,null,"Օրենքով սահմանված կարգով պարտադիր զինվորական ծառայությունից ազատված լինելու կամ պարտադիր զինվորական ծառայությունից տարկետման վերաբերյալ տեղեկություններ\n"]
[]
[{"$f":"IF(PersonalInfoYesNo3=ArmenianNo,E133<>\"\",TRUE)","v":true},null,13.4,"Պարտադիր զինվորական ծառայությունից ազատվելու հիմքը"]
[{"$f":"IF(PersonalInfoYesNo3=ArmenianNo,E134<>\"\",TRUE)","v":true},null,null,"Պարտադիր զինվորական ծառայության զորակոչից տարկետման հիմքը"]
[]
[null,null,"Կոնկրետ գործունեությամբ զբաղվելու արտոնագրեր և հավաստագրեր\n"]
[]
[null,null,14,"Հ/Հ"]
[{"$f":"COUNTA($E$138:$N$138)=COUNTA(E139:N139)","v":true},null,null,"Արտոնագրի/հավաստագրի անվանումը"]
[null,null,null,"Գործողության սկիզբ-ավարտ օրը, ամիսը, տարին"]
[{"$f":"COUNTA($E$138:$N$138)=COUNTA(E141:N141)","v":true},null,null,"սկիզբ"]
[null,null,null,"ավարտ"]
[{"$f":"COUNTA($E$138:$N$138)=COUNTA(E143:N143)","v":true},null,null,"Արտոնագիր/հավաստագիր տրամադրող կառույցը"]
[{"$f":"COUNTA($E$138:$N$138)=COUNTA(E144:N144)","v":true},null,null,"Արտոնագրի/հավաստագրի տեսակը"]
[]
[null,null,"Անդամակցությունը ոչ առևտրային կազմակերպություններին "]
[]
[null,null,15,"Հ/Հ"]
[{"$f":"COUNTA($E$148:$N$148)=COUNTA(E149:N149)","v":true},null,null,"Կազմակերպության անվանումը "]
[{"$f":"COUNTA($E$148:$N$148)=COUNTA(E150:N150)","v":true},null,null,"Զբաղեցրած դիրքը/պաշտոնը"]
[null,null,null,"Անդամակցության սկիզբ-ավարտ \nօրը, ամիսը, տարին"]
[{"$f":"COUNTA($E$148:$N$148)=COUNTA(E152:N152)","v":true},null,null,"սկիզբ"]
[null,null,null,"ավարտ"]
[null,null,null,"Անդամակցության դադարեցման պատճառը (եթե վերաբերելի է)"]
[]
[null,null,"Անդամակցությունը կուսակցություններին"]
[]
[null,null,16,"Հ/Հ"]
[{"$f":"COUNTA($E$158:$N$158)=COUNTA(E159:N159)","v":true},null,null,"Կուսակցության անվանումը"]
[{"$f":"COUNTA($E$158:$N$158)=COUNTA(E160:N160)","v":true},null,null,"Զբաղեցրած դիրքը/պաշտոնը"]
[null,null,null,"Անդամակցության սկիզբ-ավարտ \nօրը, ամիսը, տարին"]
[{"$f":"COUNTA($E$158:$N$158)=COUNTA(E162:N162)","v":true},null,null,"սկիզբ"]
[null,null,null,"ավարտ"]
[null,null,null,"Անդամակցության դադարեցման պատճառը (եթե վերաբերելի է)"]
[]
[null,null,"Տեղեկություններ նախկինում հանրային, պետական պաշտոնի համար մրցույթի մասնակցության վերաբերյալ "]
[]
[null,null,17,"Հ/Հ"]
[{"$f":"COUNTA($E$168:$N$168)=COUNTA(E169:N169)","v":true},null,null,"Պաշտոնը, որի համար մասնակցել եք մրցույթի"]
[{"$f":"COUNTA($E$168:$N$168)=COUNTA(E170:N170)","v":true},null,null,"Օրը, ամիսը, տարին"]
[{"$f":"COUNTA($E$168:$N$168)=COUNTA(E171:N171)","v":true},null,null,"Մրցույթի արդյունքում կայացված որոշումը"]
[{"$f":"COUNTA($E$168:$N$168)=COUNTA(E172:N172)","v":true},null,null,"Տեղեկություններ, եթե մրցույթի արդյունքները բողոքարկվել/վիճարկվել են"]
[{"$f":"COUNTA($E$168:$N$168)=COUNTA(E173:N173)","v":true},null,null,"Բողոքարկման արդյունքում կայացված վերջնական ուժի մեջ մտած որոշումը"]
[]
[null,null,"Այլ հետաքրքրություններ (սպորտ, մշակույթ, հոբբի և այլն)\n"]
[]
[null,null,18,"Հ/Հ"]
[{"$f":"COUNTA($E$177:$N$177)=COUNTA(E178:N178)","v":true},null,null,"Նշեք հետաքրքրությունների այն ոլորտը կամ գործունեությունը, որտեղ որոշակի ձեռքբերումներ եք ունեցել (սպորտ, մշակույթ, հոբբի և այլն)"]
[{"$f":"COUNTA($E$177:$N$177)=COUNTA(E179:N179)","v":true},null,null,"Ոլորտը"]
[{"$f":"COUNTA($E$177:$N$177)=COUNTA(E180:N180)","v":true},null,null,"Ժամանակահատվածը"]
[null,null,null,"Ձեռք բերված տիտղոս, աստիճան կամ կարգ (եթե կիրառելի է)"]
[]
[null,null,"Պարգևներ և մրցանակներ\n"]
[]
[null,null,19,"Հ/Հ"]
[{"$f":"COUNTA($E$185:$N$185)=COUNTA(E186:N186)","v":true},null,null,"Պարգևի/մրցանակի անվանումը"]
[{"$f":"COUNTA($E$185:$N$185)=COUNTA(E187:N187)","v":true},null,null,"Տարին"]
[{"$f":"COUNTA($E$185:$N$185)=COUNTA(E188:N188)","v":true},null,null,"Հիմքը"]
[true,null,null,"Շնորհող պետական մարմինը (կազմակերպությունը)"]
[]
[null,null,"1.1 ԼՐԱՑՈՒՑԻՉ ՏԵՂԵԿՈՒԹՅՈՒՆՆԵՐ\n"]

{"sheet":"Education","index":5,"n_rows":134,"n_cols":6,"rows_kept":134,"cut":false,"hidden":false,"merged":[[6,2,7,7],[39,2,40,7],[11,2,16,2],[20,2,25,2],[29,2,37,2],[42,2,46,2],[50,2,58,2],[60,2,61,7],[135,2,143,7],[127,2,131,2],[97,2,101,2],[105,2,112,2],[116,2,122,2],[94,2,95,7],[124,2,125,7],[71,2,81,2],[86,2,92,2],[63,2,67,2],[83,2,84,7]]}
[]
[]
[]
[]
[]
[]
[null,null,"2. ՀԱՎԱԿՆՈՐԴԻ/ ԹԵԿՆԱԾՈՒԻ ԿՐԹՈՒԹՅԱՆ, ԱՇԽԱՏԱՆՔԱՅԻՆ ՓՈՐՁԻ, ՆԵՐԱՌՅԱԼ ՈՒՍՈՒՄՆԱԿԱՆ ՀԱՍՏԱՏՈՒԹՅՈՒՆՆԵՐԻ ԵՎ ԳՈՐԾԱՏՈՒՆԵՐԻ ԱՆՎԱՆՈՒՄՆԵՐԻ, ԶԲԱՂԵՑՐԱԾ ՊԱՇՏՈՆԻ (ՊԱՇՏՈՆՆԵՐԻ) ՎԵՐԱԲԵՐՅԱԼ ՏԵՂԵԿՈՒԹՅՈՒՆՆԵՐ"]
[]
[]
[null,null,"Դպրոցական կրթություն"]
[]
[null,null,1,"Հ/Հ"]
[{"$f":"COUNTA($E$12:$N$12)=COUNTA(E13:N13)","v":true},null,null,"Դպրոցի անվանումը"]
[null,null,null,"Սկիզբ-ավարտ (տարիներով)"]
[{"$f":"COUNTA($E$12:$N$12)=COUNTA(E15:N15)","v":true},null,null,"սկիզբ"]
[{"$f":"COUNTA($E$12:$N$12)=COUNTA(E16:N16)","v":true},null,null,"ավարտ"]
[true,null,null,"Ստացած վկայականը (կրթական աստիճանը)"]
[]
[null,null,"Նախնական (արհեստագործական) կամ  միջին մասնագիտական կրթություն"]
[]
[null,null,2,"Հ/Հ"]
[{"$f":"COUNTA($E$21:$N$21)=COUNTA(E22:N22)","v":true},null,null,"Կրթական հաստատության անվանումը"]
[null,null,null,"Սկիզբ-ավարտ /օրը, ամիսը, տարին/"]
[{"$f":"COUNTA($E$21:$N$21)=COUNTA(E24:N24)","v":true},null,null,"սկիզբ"]
[null,null,null,"ավարտ"]
[{"$f":"COUNTA($E$21:$N$21)=COUNTA(E26:N26)","v":true},null,null,"Ստացած վկայականը (կրթական ստիճանը)"]
[]
[null,null,"Բարձրագույն կրթություն "]
[]
[null,null,3,"Հ/Հ"]
[null,null,null,"Կրթական հաստատության"]
[{"$f":"COUNTA($E$30:$N$30)=COUNTA(E32:N32)","v":true},null,null,"անվանումը"]
[{"$f":"COUNTA($E$30:$N$30)=COUNTA(E33:N33)","v":true},null,null,"հասցեն"]
[null,null,null,"Սկիզբ-ավարտ /տարին/"]
[{"$f":"COUNTA($E$30:$N$30)=COUNTA(E35:N35)","v":true},null,null,"սկիզբ"]
[null,null,null,"ավարտ"]
[{"$f":"COUNTA($E$30:$N$30)=COUNTA(E37:N37)","v":true},null,null,"Ստացած վկայականը, կրթական աստիճանը"]
[true,null,null,"Ավարտական (մագիստրոսական, դիպլոմային) թեզի թեման (եթե առկա է)"]
[]
[null,null,"Խնդրում ենք տրամադրել բարձրագույն կրթական հաստատությունից առնվազն մեկ անձի վերաբերյալ ներքոհիշյալ տվյալները, ովքեր կարող են տեղեկություններ հայտնել Ձեր վերաբերյալ  "]
[]
[]
[null,null,3.1,"Հ/Հ",1]
[{"$f":"IF($E$30<>\"\",COUNTA($E$43:$AR$43)=COUNTA(E44:AR44),TRUE)","v":true},null,null,"Անուն"]
[{"$f":"IF($E$30<>\"\",COUNTA($E$43:$AR$43)=COUNTA(E45:AR45),TRUE)","v":true},null,null,"Ազգանուն"]
[true,null,null,"Հեռախոսի համար"]
[true,null,null,"Էլ․ փոստի հասցե"]
[]
[null,null,"Հետբուհական կրթություն "]
[]
[null,null,4,"Հ/Հ"]
[null,null,null,"Կրթական հաստատության"]
[{"$f":"COUNTA($E$51:$AR$51)=COUNTA(E53:AR53)","v":true},null,null,"անվանումը"]
[{"$f":"COUNTA($E$51:$AR$51)=COUNTA(E54:AR54)","v":true},null,null,"հասցեն"]
[null,null,null,"Սկիզբ-ավարտ /Տարին/"]
[{"$f":"COUNTA($E$51:$AR$51)=COUNTA(E56:AR56)","v":true},null,null,"սկիզբ"]
[null,null,null,"ավարտ"]
[{"$f":"COUNTA($E$51:$AR$51)=COUNTA(E58:AR58)","v":true},null,null,"Ստացած վկայականը (կրթական աստիճանը)"]
[null,null,null,"Ավարտական /գիտական աշխատանքի թեման (եթե առկա է)"]
[]
[null,null,"Խնդրում ենք տրամադրել հետբուհական կրթական  հաստատությունից առնվազն մեկ անձի վերաբերյալ ներքոհիշյալ տվյալները, ովքեր կարող են տեղեկություններ հայտնել Ձեր վերաբերյալ "]
[]
[]
[null,null,4.0999999999999996,"Հ/Հ",1]
[{"$f":"IF($E$51<>\"\",COUNTA($E$64:$AR$64)=COUNTA(E65:AR65),TRUE)","v":true},null,null,"Անուն"]
[{"$f":"IF($E$51<>\"\",COUNTA($E$64:$AR$64)=COUNTA(E66:AR66),TRUE)","v":true},null,null,"Ազգանուն"]
[true,null,null,"Հեռախոսի համար"]
[true,null,null,"Էլ․ փոստի հասցե"]
[]
[null,null,"Ստացված անվանական կրթաթոշակներ և կրթական դրամաշնորհներ "]
[]
[null,null,5,"Հ/Հ"]
[{"$f":"COUNTA($E$72:$AR$72)=COUNTA(E73:AR73)","v":true},null,null,"Կրթաթոշակի կամ դրամաշնորհի տեսակը/անվանումը "]
[null,null,null,"Սկիզբ-ավարտ /օր, ամիսը, տարին/"]
[{"$f":"COUNTA($E$72:$AR$72)=COUNTA(E75:AR75)","v":true},null,null,"սկիզբ"]
[null,null,null,"ավարտ"]
[null,null,null,"Կրթաթոշակի կամ դրամաշնորհի "]
[true,null,null,"չափը"]
[true,null,null,"արժույթը"]
[true,null,null,"Տրամադրող կազմակերպությունը"]
[null,null,null,"Կրթաթոշակը (դրամաշնորհը) դադարեցնելու պատճառը  "]
[null,null,null,"Մեկնաբանություններ"]
[]
[null,null,"Աշխատանքային փորձառություն և մասնագիտական գործունեություն\n(Թվարկել վերջին 10 տարիների ընթացքի աշխատանքը և զբաղեցրած պաշտոնները, ներառյալ նույն գործատուի մոտ պաշտոնի առաջխաղացման դեպքերը)\nԽնդրում ենք թվարկել հակառակ ժամանակագրական հերթականությամբ"]
[]
[]
[null,null,6,"Հ/Հ"]
[{"$f":"COUNTA($E$87:$AR$87)=COUNTA(E88:AR88)","v":true},null,null,"Գործատուի անվանումը"]
[null,null,null,"Սկիզբ-ավարտ /օր, ամիսը, տարին/"]
[{"$f":"COUNTA($E$87:$AR$87)=COUNTA(E90:AR90)","v":true},null,null,"սկիզբ"]
[{"$f":"COUNTA($E$87:$AR$87)=COUNTA(E91:AR91)","v":true},null,null,"ավարտ"]
[{"$f":"COUNTA($E$87:$AR$87)=COUNTA(E92:AR92)","v":true},null,null,"Զբաղեցրած պաշտոնը"]
[{"$f":"COUNTA($E$87:$AR$87)=COUNTA(E93:AR93)","v":true},null,null,"Աշխատանքը դադարեցնելու պատճառը"]
[]
[null,null,"Խնդրում ենք տրամադրել վերջին հինգ տարվա աշխատավայր(եր)ից առնվազն երկու անձի տվյալները, ովքեր կարող են տեղեկություններ հայտնել Ձեր վերաբերյալ "]
[]
[]
[null,null,6.1,"Հ/Հ",1,2]
[{"$f":"IF($E$87<>\"\",COUNTA($E$98:$AR$98)=COUNTA(E99:AR99),TRUE)","v":true},null,null,"Անուն"]
[{"$f":"IF($E$87<>\"\",COUNTA($E$98:$AR$98)=COUNTA(E100:AR100),TRUE)","v":true},null,null,"Ազգանուն"]
[true,null,null,"Հեռախոսի համար"]
[true,null,null,"Էլ․ փոստի հասցե"]
[]
[null,null,"Աշխատանքային խրախուսանքներ"]
[]
[null,null,7,"Հ/Հ"]
[null,null,null,"Գործատուի  "]
[{"$f":"COUNTA($E$106:$AR$106)=COUNTA(E108:AR108)","v":true},null,null,"անվանումը"]
[true,null,null,"հասցե"]
[true,null,null,"օրը, ամիսը, տարին"]
[true,null,null,"Զբաղեցրած պաշտոնը"]
[true,null,null,"Հիմքը/առիթը"]
[true,null,null,"Խրախուսանքի տեսակը"]
[]
[null,null,"Մասնագիտական այլ գործունեությունը, ներառյալ՝ հասարակական և կամավորական աշխատանքը"]
[]
[null,null,8,"Հ/Հ"]
[{"$f":"COUNTA($E$117:$AR$117)=COUNTA(E118:AR118)","v":true},null,null,"Կազմակերպության անունը"]
[null,null,null,"Սկիզբ-ավարտ (տարին)"]
[{"$f":"COUNTA($E$117:$AR$117)=COUNTA(E120:AR120)","v":true},null,null,"սկիզբ"]
[null,null,null,"ավարտ"]
[{"$f":"COUNTA($E$117:$AR$117)=COUNTA(E122:AR122)","v":true},null,null,"Զբաղեցրած պաշտոնը"]
[null,null,null,"դադարեցնելու պատճառը"]
[]
[null,null,"Խնդրում ենք տրամադրել առնվազն երկու անձի տվյալները, ովքեր կարող են այդ մասնագիտական գործունեությանը վերաբերող ժամանակահատվածի համար Ձեր վերաբերյալ տեղեկություններ հայտնել "]
[]
[]
[null,null,8.1,"Հ/Հ",1,2]
[{"$f":"IF($E$117<>\"\",COUNTA($E$128:$AR$128)=COUNTA(E129:AR129),TRUE)","v":true},null,null,"Անուն"]
[{"$f":"IF($E$117<>\"\",COUNTA($E$128:$AR$128)=COUNTA(E130:AR130),TRUE)","v":true},null,null,"Ազգանուն"]
[true,null,null,"Հեռախոսի համար"]
[true,null,null,"Էլ․ փոստի հասցե"]
[]
[null,null,"2.1 ԼՐԱՑՈՒՑԻՉ ՏԵՂԵԿՈՒԹՅՈՒՆՆԵՐ\n"]

{"sheet":"Relation","index":6,"n_rows":21,"n_cols":4,"rows_kept":21,"cut":false,"hidden":false,"merged":[[9,2,20,2],[6,2,7,7]]}
[]
[]
[]
[]
[]
[]
[null,null,"3. ՀԱՎԱԿՆՈՐԴ/ԹԵԿՆԱԾՈՒԻ ՀԵՏ ՄԵՐՁԱՎՈՐ ԱԶԳԱԿՑՈՒԹՅԱՄԲ ԿԱՄ ԽՆԱՄԻՈՒԹՅԱՄԲ ԿԱՊՎԱԾ ԱՆՁԱՆՑ ՎԵՐԱԲԵՐՅԱԼ ՏԵՂԵԿՈՒԹՅՈՒՆՆԵՐ, ՈՎՔԵՐ «ՀԱՆՐԱՅԻՆ ԾԱՌԱՅՈՒԹՅԱՆ ՄԱՍԻՆ» ՀՀ ՕՐԵՆՔԻ ԻՄԱՍՏՈՎ ՀԱՆՐԱՅԻՆ ՊԱՇՏՈՆ ԵՆ ԶԲԱՂԵՑՐԵԼ(ԿԱՄ ԶԲԱՂԵՑՆՈՒՄ)"]
[]
[]
[null,null,3,"Հ/Հ"]
[{"$f":"COUNTA($E$10:$AR$10)=COUNTA(E11:AR11)","v":true},null,null,"Կապը հավակնորդի հետ "]
[true,null,null,"Անունը"]
[true,null,null,"Ազգանունը"]
[true,null,null,"Հայրանունը"]
[true,null,null,"Ծննդյան օրը, ամիսը, տարին "]
[true,null,null,"Գործատուի անվանումը "]
[true,null,null,"Զբաղեցրած պաշտոնը"]
[null,null,null,"Պաշտոնավարման ժամկետը /Օրը, ամիսը, տարին/"]
[{"$f":"COUNTA($E$10:$AR$10)=COUNTA(E19:AR19)","v":true},null,null,"սկիզբ"]
[null,null,null,"ավարտ  (եթե վերաբերելի է)"]
[null,null,null,"Պաշտոնը դադարեցնելու պատճառը (եթե վերաբերելի է)"]

{"sheet":"Accusation","index":7,"n_rows":93,"n_cols":6,"rows_kept":93,"cut":false,"hidden":false,"merged":[[50,2,53,2],[84,3,85,3],[84,4,84,5],[61,2,65,2],[84,2,92,2],[69,2,77,7],[59,2,59,7],[27,2,31,2],[35,2,38,2],[44,2,46,2],[10,2,15,2],[19,2,22,2],[24,2,25,7]]}
[]
[]
[]
[]
[]
[]
[null,null,"4. Հավակնորդ/թեկնածուի քրեական, վարչական կամ կարգապահական պատասխանատվության վերաբերյալ տեղեկություններ"]
[]
[null,null,"Կարգապահական պատասխանատվության վերաբերյալ տեղեկություն (եթե վերաբերլի է)"]
[]
[null,null,1,"Հ/Հ"]
[{"$f":"COUNTA($E$11:$AR$11)=COUNTA(E12:AR12)","v":true},null,null,"Կարգապահական պատասխանատվության  ենթարկվելը "]
[{"$f":"COUNTA($E$11:$AR$11)=COUNTA(E13:AR13)","v":true},null,null,"Տարին"]
[{"$f":"COUNTA($E$11:$AR$11)=COUNTA(E14:AR14)","v":true},null,null,"Կազմակերպության/գործատուի անվանումը"]
[{"$f":"COUNTA($E$11:$AR$11)=COUNTA(E15:AR15)","v":true},null,null,"Կարգապահական պատասխանատվության տեսակը"]
[{"$f":"COUNTA($E$11:$AR$11)=COUNTA(E16:AR16)","v":true},null,null,"Կարգապահական պատասխանատվության հիմքը"]
[]
[null,null,"Կարգապահական պատասխանատվությանն առնչվող այլ տվյալներ"]
[]
[null,null,1.1000000000000001,"Հ/Հ"]
[{"$f":"COUNTA($E$20:$AR$20)=COUNTA(E21:AR21)","v":true},null,null,"Հանգամանքների ամբողջական նկարագրությունը"]
[null,null,null,"Տեղեկություններ, եթե կարգապահական պատասխանատվության ենթարկելու վերաբերյալ որոշումը բողոքարկվել է և բողոքարկման հիմքը"]
[null,null,null,"Բողոքարկման արդյունքում կայացված վերջնական ուժի մեջ մտած որոշումը (գործի համարը)"]
[]
[null,null,"Վարչական պատասխանատվության ենթարկված լինելու մասին  տեղեկություն \n(Խնդրում ենք ներկայացնել  Ձեր կյանքի կամ Ձեր ղեկավարած կազմակերպության գործունեության ողջ ընթացքում վարչական պատասխանատվության մասին)\n(Ճանապարհային երևեկության կաննոնների և ավտոկայանատեղիների տեղական տուրքի վճարումների խախտման դեպքում նշել վերջին 1 տարվա ընթացքում վարչական պատասխանատվության ենթարկված լինելու դեպքերը)\n"]
[]
[]
[null,null,2,"Հ/Հ"]
[{"$f":"COUNTA($E$28:$AR$28)=COUNTA(E29:AR29)","v":true},null,null,"Վարչական պատասխանատվության տեսակը"]
[{"$f":"COUNTA($E$28:$AR$28)=COUNTA(E30:AR30)","v":true},null,null,"Վարչական պատասխանատվության հիմքը"]
[true,null,null,"Օրը, ամիսը, տարին"]
[true,null,null,"Վարչական պատասխանատվություն կիրառող մարմինը"]
[]
[null,null,"Վարչական պատասխանատվությանն առնչվող այլ տվյալներ"]
[]
[null,null,2.1,"Հ/Հ"]
[{"$f":"COUNTA($E$36:$AR$36)=COUNTA(E37:AR37)","v":true},null,null,"Հանգամանքների ամբողջական նկարագրությունը"]
[{"$f":"COUNTA($E$36:$AR$36)=COUNTA(E38:AR38)","v":true},null,null,"Տեղեկություններ, եթե վարչական պատասխանատվության ենթարկելու վերաբերյալ որոշումը բողոքարկվել է, բողոքարկող կողմը և բողոքարկման հիմքը"]
[true,null,null,"Բողոքարկման արդյունքում կայացված վերջնական ուժի մեջ մտած որոշումը (գործի համարը)"]
[]
[null,null,"3. Քրեական պատասխանատվությանն առնչվող տեղեկություններ"]
[]
[{"$f":"OR(AccusationYesNo1=ArmenianYes,AccusationYesNo1=ArmenianNo)","v":false},null,3.1,"Քրեական պատասխանատվության ենթարկված լինելը"]
[]
[null,null,3.1,"Հ/Հ"]
[{"$f":"IF(AccusationYesNo1=ArmenianYes,AND(COUNTA($E$45:$AR$45)>0,COUNTA($E$45:$AR$45)=COUNTA(E46:AR46)),TRUE)","v":true},null,null,"ՀՀ քրեական օրենսգրքի հիմք հանդիսացած հոդվածը"]
[{"$f":"IF(AccusationYesNo1=ArmenianYes,AND(COUNTA($E$45:$AR$45)>0,COUNTA($E$45:$AR$45)=COUNTA(E47:AR47)),TRUE)","v":true},null,null,"Դատական ակտի տեսակը (գործի համարը, պատժատեսակ) "]
[]
[{"$f":"OR(AccusationYesNo4=ArmenianYes,AccusationYesNo4=ArmenianNo)","v":false},null,3.1,"Ձեր նկատմամբ երբևէ կայացվե՞լ է քրեական հետապնդում չիրականացնելու կամ քրեական հետապնդումը դադարեցնելու որոշում"]
[]
[null,null,3.1,"Հ/Հ"]
[{"$f":"IF(AccusationYesNo4=ArmenianYes,AND(COUNTA($E$51:$AR$51)>0,COUNTA($E$51:$AR$51)=COUNTA(E52:AR52)),TRUE)","v":true},null,null,"ՀՀ քրեական դատավարության օրենսգրքի համապատասխան հոդվածը"]
[{"$f":"IF(AccusationYesNo4=ArmenianYes,AND(COUNTA($E$51:$AR$51)>0,COUNTA($E$51:$AR$51)=COUNTA(E53:AR53)),TRUE)","v":true},null,null,"Քրեական հետապնդման մարմնի կողմից կայացված որոշումը"]
[{"$f":"IF(AccusationYesNo4=ArmenianYes,AND(COUNTA($E$51:$AR$51)>0,COUNTA($E$51:$AR$51)=COUNTA(E54:AR54)),TRUE)","v":true},null,null,"Քրեական հետապնդում իրականացնող մարմնի անվանումը"]
[]
[{"$f":"OR(AccusationYesNo2=ArmenianYes,AccusationYesNo2=ArmenianNo)","v":false},null,3.1,"Դատվածության առկայությունը"]
[]
[{"$f":"IF(AccusationYesNo2=ArmenianYes,OR(AccusationYesNo3=ArmenianYes,AccusationYesNo3=ArmenianNo),TRUE)","v":true},null,3.1,"Արդյոք դատվածությունը հանված/մարված է, թե ոչ"]
[]
[null,null,"4. Քաղաքացիական (գույքային պարտավորությունների չկատարման վերաբերյալ) դատական հայցի կամ օրինական ուժի մեջ մտած վճռի առկայություն (որպես հայցվոր և պատասխանող)  \nԽնդրում ենք թվարկել վերջին 5 տարիներին ընթացքում գույքային պարտավորությունների չկատարման վերաբերյալ տեղեկությունները հակառակ ժամանակագրական հերթականությամբ\n"]
[]
[null,null,4,"Հ/Հ"]
[{"$f":"COUNTA($E$62:$AR$62)=COUNTA(E63:AR63)","v":true},null,null,"Գույքային պարտավորության տեսակը"]
[{"$f":"COUNTA($E$62:$AR$62)=COUNTA(E64:AR64)","v":true},null,null,"Գույքային պարտավորության հիմքը"]
[true,null,null,"Գործի համարը"]
[true,null,null,"Վերջնական դատական ակտի(վճիռը) համարը և այլ մանրամասներ"]
[]
[null,null,"4.1 Լրացուցիչ տեղեկություններ"]
[]
[]
[]
[]
[]
[]
[]
[]
[]
[]
[]
[null,null,"5. Հավակնորդի/թեկնածուի քրեական ենթամշակույթին հարելու հնարավորության վերաբերյալ տեղեկություններ"]
[]
[null,null,"5.1 Երբևէ ներգրավված եղել եք այնպիսի գործողություններում, որոնք առնչվում են քրեական ենթամշակույթին"]
[null,null,"5.2 Արդյոք տեղյակ եք, որ Ձեր ընտանիքի որևէ անդամ երբևէ ներգրավված է եղել այնպիսի գործողություններում, որոնք առնչվում են քրեական ենթամշակույթին"]
[]
[null,null,5,"Գործողության տեսակը","Մանրամասների նկարագրություն"]
[null,null,null,null,"5.1 Դուք","5.2 ընտանիքի անդամ"]
[null,null,null,"Քրեական ենթամշակույթ կրող անձի հետ (օրինակ՝ օրենքով գող, քրեական հեղինակություն) ազգակցական կամ ընկերական կապի առկայության վերաբերյալ նշում"]
[null,null,null,"Քրեական ենթամշակույթ կրող խմբավորման կամ անձի խնդրանքը կատարելու վերաբերյալ նշում"]
[null,null,null,"Քրեական ենթամշակույթ կրող խմբավորմանը կամ անձին խնդրանքով կամ որևէ այլ հարցով դիմելու վերաբերյալ նշում"]
[null,null,null,"Քրեական ենթամշակույթ կրող խմբավորումից կամ անձից ցանկացած այլ օգուտ ստացած լինելու վերաբերյալ նշում"]
[null,null,null,"Քրեական ենթամշակույթ կրող խմբավորման կամ անձի  հետ անհատական հանդիպման վերաբերյալ նշում"]
[null,null,null,"Քրեական ենթամշակույթ կրող խմբավորման կամ անձի հետ հեռախոսակցություն կամ այլ հեռահար հաղորդակցություն ունենալու վերաբերյալ նշում"]
[null,null,null,"Քրեական ենթամշակույթ կրող խմբավորման կամ անձի հետ անձնական  այլ կապ ունենալու վերաբերյալ նշում "]

{"sheet":"Property","index":8,"n_rows":207,"n_cols":4,"rows_kept":207,"cut":false,"hidden":false,"merged":[[110,2,117,2],[122,2,127,2],[131,2,137,2],[7,2,7,6],[193,2,193,7],[150,2,158,7],[10,2,22,2],[27,2,42,2],[46,2,56,2],[61,2,71,2],[75,2,83,2],[141,2,146,2],[88,2,94,2],[98,2,104,2],[195,2,203,7],[206,2,206,3],[162,2,170,2],[174,2,179,2],[183,2,191,7]]}
[]
[]
[]
[]
[]
[]
[null,null,"6. Հավակնորդի/թեկնածուի, նրա ընտանիքի անդամների գույքային դրության վերաբերյալ ամփոփ տեղեկություններ"]
[null,null,{"$f":"\"( \"&TEXT(EOMONTH(MainDate,-1),\"dd/mm/yyyy\")&\"-ի դրությամբ )\"","v":{"$error":"#NUM!"}}]
[null,null,"6.1 Թեկնածուի ընտանիքի անդամների մասին տվյալները"]
[]
[null,null,6.1,"Հ/Հ"]
[{"$f":"COUNTA($E$11:$AR$11)=COUNTA(E12:AR12)","v":true},null,null,"Անունը"]
[{"$f":"COUNTA($E$11:$AR$11)=COUNTA(E13:AR13)","v":true},null,null,"Ազգանունը"]
[true,null,null,"Հայրանունը"]
[null,null,null,{"$f":"MainName&\" \"&MainSurname&\" \"&MainMiddleName","v":"  "}]
[true,null,null,"Կապը թեկնածուի  թեկնածուի հետ"]
[true,null,null,"Ծննդյան օրը, ամիսը, տարին"]
[null,null,null,"Հանրային ծառայությունների համարանիշը (առկայության դեպքում) "]
[true,null,null,"Քաղաքացիությունը"]
[true,null,null,"Հաշվառման հասցեն"]
[null,null,null,"Բնակության հասցեն"]
[null,null,null,"Պաշտոնը (աշխատանքային գործունեությունը)"]
[null,null,null,"Գործատուի անվանումը"]
[]
[null,null,"6.2. ԹԵԿՆԱԾՈՒԻ, ՆՐԱ ԸՆՏԱՆԻՔԻ ԱՆԴԱՄՆԵՐԻ  ՍԵՓԱԿԱՆՈՒԹՅՈՒՆԸ "]
[null,null,"6.2.1. ԱՆՇԱՐԺ ԳՈՒՅՔԸ"]
[]
[null,null,"6.2.1","Հ/Հ"]
[{"$f":"COUNTA($E$28:$AR$28)=COUNTA(E29:AR29)","v":true},null,null,"Սսեփականատեր"]
[{"$f":"COUNTA($E$28:$AR$28)=COUNTA(E30:AR30)","v":true},null,null,"Առկա անշարժ գույքի տեսակը"]
[true,null,null,"Սեփականության իրավունքի տեսակը"]
[true,null,null,"Թեկնածու սեփականատիրոջ բաժինը"]
[true,null,null,"Գտնվելու երկիրը"]
[true,null,null,"Գտնվելու վայրի հասցեն"]
[true,null,null,"Անշարժ գույքի հաշվառման համարը"]
[null,null,null,"Անշարժ գույքի մակերեսը"]
[true,null,null,"Չափման միավոր"]
[true,null,null,"Չափը"]
[true,null,null,"Անշարժ գույքը ձեռք բերելու օրը, ամիսը, տարին"]
[true,null,null,"Անշարժ գույքը ձեռք բերելու եղանակը"]
[null,null,null,"Ձեռքբերման"]
[true,null,null,"գինը (արժեքը)"]
[true,null,null,"արժույթը"]
[]
[null,null,"6.2.2 Տրանսպորտային միջոցները"]
[]
[null,null,"6.2.2","Հ/Հ"]
[{"$f":"COUNTA($E$47:$AR$47)=COUNTA(E48:AR48)","v":true},null,null,"Սսեփականատեր"]
[{"$f":"COUNTA($E$47:$AR$47)=COUNTA(E49:AR49)","v":true},null,null,"Առկա տրանսպորտի տեսակը"]
[true,null,null,"Մակնիշը, սերիան"]
[true,null,null,"Թողարկման տարին  "]
[true,null,null,"Նույնականացման համարը"]
[true,null,null,"Տրանսպորտի միջոցի  ձեռք բերելու օրը, ամիսը, տարին"]
[true,null,null,"Տրանսպորտի միջոցի ձեռք բերելու եղանակը"]
[null,null,null,"Ձեռքբերման"]
[true,null,null,"գինը (արժեքը)"]
[true,null,null,"արժույթը"]
[]
[null,null,"6.2.3. ԱՐԺԵԹՂԹԵՐ ԵՎ ԱՅԼ ՆԵՐԴՐՈՒՄՆԵՐ"]
[null,null,"Բաժնային արժեթղթեր և այլ ներդրումներ"]
[]
[null,null,"6.2.3","Հ/Հ"]
[{"$f":"COUNTA($E$62:$AR$62)=COUNTA(E63:AR63)","v":true},null,null,"Սսեփականատեր"]
[{"$f":"COUNTA($E$62:$AR$62)=COUNTA(E64:AR64)","v":true},null,null,"Ընկերության լրիվ անվանումը"]
[true,null,null,"Արժեթղթի կամ այլ ներդրման տեսակը "]
[true,null,null,"Ձեռքբերման ամսաթիվ"]
[true,null,null,"Ձեռքբերման եղանակը"]
[true,null,null,"Գործարքի մյուս կողմի անվանումը կամ անունը, ազգանունը, հայրանունը, հասցեն "]
[null,null,null,"Առկա բաժնային արժեթղթի կամ այլ ներդրման"]
[true,null,null,"Արժեքը (գինը)"]
[true,null,null,"Արժույթը"]
[true,null,null,"Բաժնեմասնակցության %"]
[]
[null,null,"Պարտքային և այլ արժեթղթեր"]
[]
[null,null,"6.2.3","Հ/Հ"]
[{"$f":"COUNTA($E$76:$AR$76)=COUNTA(E77:AR77)","v":true},null,null,"Սսեփականատեր"]
[{"$f":"COUNTA($E$76:$AR$76)=COUNTA(E78:AR78)","v":true},null,null,"Արժեթղթի  տեսակը "]
[true,null,null,"Ձեռքբերման ամսաթիվ"]
[true,null,null,"Ձեռքբերման եղանակը"]
[true,null,null,"Գործարքի մյուս կողմի անվանումը կամ անունը, ազգանունը, հայրանունը, հասցեն "]
[null,null,null,"Առկա պարտքային և այլ արժեթղթերի"]
[true,null,null,"Արժեքը (գինը)"]
[true,null,null,"Արժույթը"]
[]
[null,null,"6.2.4. ՀԱՆՁՆՎԱԾ  ՓՈԽԱՌՈՒԹՅՈՒՆՆԵՐ, ԲԱՆԿԱՅԻՆ ԱՎԱՆԴՆԵՐ"]
[null,null,"Հանձնված  փոխառություններ"]
[]
[null,null,"6.2.4","Հ/Հ"]
[{"$f":"COUNTA($E$89:$AR$89)=COUNTA(E90:AR90)","v":true},null,null,"Սսեփականատեր"]
[{"$f":"COUNTA($E$89:$AR$89)=COUNTA(E91:AR91)","v":true},null,null,"Պարտապանի անվանումը կամ անունը, ազգանունը, հայրանունը"]
[true,null,null,"Պարտապանի հասցեն"]
[null,null,null,"Տրված փոխառության "]
[{"$f":"COUNTA($E$89:$AR$89)=COUNTA(E94:AR94)","v":true},null,null,"գումարը"]
[{"$f":"COUNTA($E$89:$AR$89)=COUNTA(E95:AR95)","v":true},null,null,"արժույթը"]
[]
[null,null,"Բանկային ավանդներ"]
[]
[null,null,"6.2.4","Հ/Հ"]
[{"$f":"COUNTA($E$99:$AR$99)=COUNTA(E100:AR100)","v":true},null,null,"Սսեփականատեր"]
[{"$f":"COUNTA($E$99:$AR$99)=COUNTA(E101:AR101)","v":true},null,null,"Բանկի անվանումը"]
[null,null,null,"Բանկի հասցեն (օտարերկրյա բանկի դեպքում)"]
[null,null,null,"Տվյալ բանկում առկա ավանդի"]
[true,null,null,"գումարը"]
[true,null,null,"արժույթը"]
[]
[null,null,"6.2.5. ՈՒԹ ՄԻԼԻՈՆ ԴՐԱՄԻՑ ԿԱՄ ԴՐԱՆ ՀԱՄԱՐԺԵՔ ԱՐՏԱՐԺՈՒՅԹԻՑ ԱՎԵԼԻ ԱՐԺԵՔ ՈՒՆԵՑՈՂ ԳՈՒՅՔԸ (ԹԱՆԿԱՐԺԵՔ ԳՈՒՅՔ)"]
[]
[null,null,"Առկա՝ ութ միլիոն դրամից կամ դրան համարժեք արտարժույթից ավելի արժեք ունեցող գույքը (թանկարժեք գույք)"]
[]
[null,null,"6.2.5","Հ/Հ"]
[{"$f":"COUNTA($E$111:$AR$111)=COUNTA(E112:AR112)","v":true},null,null,"Սսեփականատեր"]
[{"$f":"COUNTA($E$111:$AR$111)=COUNTA(E113:AR113)","v":true},null,null,"Առկա թանկարժեք գույքի տեսակը"]
[true,null,null,"Թանկարժեք գույքի նկարագրությունը"]
[true,null,null,"Թանկարժեք գույքի ձեռք բերելու տարին "]
[true,null,null,"Թանկարժեք գույքը ձեռք բերելու եղանակը"]
[true,null,null,"Ձեռքբերման արժեքը (գինը)"]
[true,null,null,"Արժույթը "]
[]
[null,null,"6.2.6. ԴՐԱՄԱԿԱՆ ՄԻՋՈՑՆԵՐԸ"]
[null,null,"6.1. Բանկային հաշիվների մնացորդներ (բացառությամբ ավանդների)"]
[]
[null,null,"6.2.6","Հ/Հ"]
[{"$f":"COUNTA($E$123:$AR$123)=COUNTA(E124:AR124)","v":true},null,null,"Սսեփականատեր"]
[null,null,null,"Առկա դրամական միջոց"]
[{"$f":"COUNTA($E$123:$AR$123)=COUNTA(E126:AR126)","v":true},null,null,"գումարը (չափը)"]
[{"$f":"COUNTA($E$123:$AR$123)=COUNTA(E127:AR127)","v":true},null,null,"արժույթը"]
[true,null,null,"Ծագման աղբյուրը"]
[]
[null,null,"Էլեկտրոնային հաշիվներ և կրիպտոարժույթ"]
[]
[null,null,"6.2.6","Հ/Հ"]
[{"$f":"COUNTA($E$132:$AR$132)=COUNTA(E133:AR133)","v":true},null,null,"Սեփականատեր"]
[null,null,null,"Առկա դրամական միջոց"]
[{"$f":"COUNTA($E$132:$AR$132)=COUNTA(E135:AR135)","v":true},null,null,"Տեսակը"]
[{"$f":"COUNTA($E$132:$AR$132)=COUNTA(E136:AR136)","v":true},null,null,"գումարը (չափը)"]
[true,null,null,"արժույթը"]
[true,null,null,"Ծագման աղբյուրը"]
[]
[null,null,"Կանխիկ դրամ"]
[]
[null,null,"6.2.6","Հ/Հ"]
[{"$f":"COUNTA($E$142:$AR$142)=COUNTA(E143:AR143)","v":true},null,null,"Սսեփականատեր"]
[null,null,null,"Առկա կանխիկ դրամ"]
[{"$f":"COUNTA($E$142:$AR$142)=COUNTA(E145:AR145)","v":true},null,null,"գումարը (չափը)"]
[{"$f":"COUNTA($E$142:$AR$142)=COUNTA(E146:AR146)","v":true},null,null,"արժույթը"]
[true,null,null,"Ծագման աղբյուրը"]
[]
[null,null,"6.2.7. ԼՐԱՑՈՒՑԻՉ ՏԵՂԵԿՈՒԹՅՈՒՆՆԵՐ"]
[]
[]
[]
[]
[]
[]
[]
[]
[]
[]
[]
[null,null,"6.3. ԹԵԿՆԱԾՈՒԻ, ՆՐԱ ԸՆՏԱՆԻՔԻ  ԱՆԴԱՄՆԵՐԻ ՎԵՐՋԻՆ ԵՐԵՔ ՏԱՐԻՆԵՐԻ ԵԿԱՄՈՒՏՆԵՐԸ"]
[null,null,"( բոլոր եկամուտները նշվում են առանց հարկերի /զուտ/ գումարով )"]
[null,null,6.3,"Հ/Հ"]
[{"$f":"COUNTA($E$163:$AR$163)=COUNTA(E164:AR164)","v":true},null,null,"Սսեփականատեր"]
[{"$f":"COUNTA($E$163:$AR$163)=COUNTA(E165:AR165)","v":true},null,null,"Եկամտի տեսակը"]
[true,null,null,"Եկամուտ վճարող կազմակերպության անվանումը կամ ֆիզիկական անձի անունը, ազգանունը և հայրանունը"]
[true,null,null,"Եկամուտ վճարողի հասցեն"]
[null,null,null,"Տվյալ աղբյուրից վերջին երեք տարիներին ստացված եկամուտը (ընդամենը)"]
[true,null,null,"գումարը "]
[true,null,null,"արժույթը"]
[null,null,null,"Բնամթերային ձևով ստացված եկամուտը"]
[]
[null,null,{"$f":"\"6.4. Թեկնածուի եկամտի աղբյուրները \"&Lists!$U$9&\"-\"&Lists!$U$2&\"թթ. Ժամանակահատվածի համար\"","v":"6.4. Թեկնածուի եկամտի աղբյուրները 2011-2018թթ. Ժամանակահատվածի համար"}]
[]
[null,null,6.4,"Հ/Հ"]
[{"$f":"COUNTA($E$175:$AR$175)=COUNTA(E176:AR176)","v":true},null,null,"Եկամտի աղբյուրը"]
[{"$f":"COUNTA($E$175:$AR$175)=COUNTA(E177:AR177)","v":true},null,null,"Եկամտի տարեկան չափը"]
[null,null,null,"Եկամտի ստացման տարիները"]
[{"$f":"COUNTA($E$175:$AR$175)=COUNTA(E179:AR179)","v":true},null,null,"սկիզբ"]
[{"$f":"COUNTA($E$175:$AR$175)=COUNTA(E180:AR180)","v":true},null,null,"ավարտ"]
[]
[null,null,"7.5. Լրացուցիչ տեղեկություններ"]
[]
[]
[]
[]
[]
[]
[]
[]
[]
[]
[]
[null,null,"ՀԱՎԱՍՏՈՒՄ ԵՎ ԼԻԱԶՈՐՈՒՄ"]
[]
[null,null,"Համաձայն Կոռուպցիայի կանխարգելման հանձնաժողովի մասին օրենքի 26.1-րդ հոդվածի՝ հայտնում եմ, որ տեղյակ եմ Հանձնաժողովի իրավասություններին, համաձայն որոնց Հանձնաժողովը բարեվարքության ուսումնասիրության գործընթացում իրավասու է պետական կամ տեղական ինքնակառավարման մարմնից, պետական կազմակերպություններից կամ դրանց պաշտոնատար անձանցից, այլ անձանցից պահանջելու և ստանալու (ներառյալ՝ էլեկտրոնային հարցման եղանակով) իմ վերաբերյալ տեղեկություններ, փաստաթղթեր, այդ թվում՝ բանկային գաղտնիք կազմող տեղեկություններ, «Արժեթղթերի շուկայի մասին» օրենքով սահմանված Կենտրոնական դեպոզիտարիայի կողմից արժեթղթերի հետ կատարված գործարքների վերաբերյալ ծառայողական տեղեկություններ, ապահովագրական գաղտնիք կազմող տեղեկություններ, ինչպես նաև վարկային բյուրոյից՝ վարկային տեղեկատվություն կամ վարկային պատմություն:\n  \nՍույնով հաստատում եմ, որ սույն հարցաթերթիկում հիշատակված երրորդ անձինք տեղեկացված են իրենց վերաբերյալ տվյալների տրամադրման մասին:\n\nՍտորև ստորագրելով՝  հաստատում եմ, որ կարդացել եմ վերոշարադրյալ հարցերը և լիարժեքորեն, ճշմարտացիորեն և ճշգրիտ կերպով պատասխանել եմ դրանց:\n"]
[]
[]
[]
[]
[]
[]
[]
[]
[]
[]
[null,null,"Ստորագրություն"]